Workbook

Sheet 2021 Summary
B2: Workforce Demographics Overview - 2021
B3: Figures exclude Sulis, WEAHSN, Mass Vaccination Centre & Non-Paid & Recharge
B4: Position as at 31 December
K6: Age Band | L6: Headcount | M6: %
K7: 16-25 | L7: 823 | M7: =L7/SUM($L$7:$L$12) -> 0.1132205255 | X7: Disability | Y7: Headcount | Z7: %
K8: 26-35 | L8: 2019 | M8: 0.2777548494 | X8: Yes | Y8: 233 | Z8: =Y8/SUM($Y$8:$Y$11) -> 0.03205392764
K9: 36-45 | L9: 1586 | M9: 0.2181868207 | X9: No | Y9: 5800 | Z9: =Y9/SUM($Y$8:$Y$11) -> 0.7979089283
K10: 46-55 | L10: 1568 | M10: 0.2157105517 | X10: Not Declared | Y10: 123 | Z10: =Y10/SUM($Y$8:$Y$11) -> 0.0169211721
K11: 56-65 | L11: 1110 | M11: 0.1527032604 | X11: Not Recorded | Y11: 1113 | Z11: =Y11/SUM($Y$8:$Y$11) -> 0.1531159719
K12: 66 and Over | L12: 163 | M12: 0.0224239923
K17: Ethnicity | L17: Headcount | M17: % | X17: Gender | Y17: Headcount | Z17: %
K18: White - British | L18: 5411 | M18: =L18/SUM($L$18:$L$21) -> 0.7443940019 | X18: Female | Y18: 5486 | Z18: =Y18/SUM($Y$18:$Y$19) -> 0.7547117898
K19: White - Other | L19: 603 | M19: =L19/SUM($L$18:$L$21) -> 0.08295501444 | X19: Male | Y19: 1783 | Z19: =Y19/SUM($Y$18:$Y$19) -> 0.2452882102
K20: Ethnic Minority (Exlcuding White Minorities) | L20: 1091 | M20: =L20/SUM($L$18:$L$21) -> 0.1500894208
K21: Not Recorded | L21: 164 | M21: =L21/SUM($L$18:$L$21) -> 0.0225615628
K28: Relationship Status | L28: Headcount | M28: % | X28: Religious Belief | Y28: Headcount | Z28: %
K29: Single | L29: 3022 | M29: =L29/SUM($L$29:$L$35) -> 0.4157380658 | X29: Atheism | Y29: 1462 | Z29: =Y29/SUM($Y$29:$Y$38) -> 0.2011280781
K30: Married | L30: 3393 | M30: 0.4667767231 | X30: Buddhism | Y30: 42 | Z30: 0.005777961205
K31: Civil Partnership | L31: 94 | M31: 0.01293162746 | X31: Christianity | Y31: 3224 | Z31: 0.4435273077
K32: Divorced | L32: 373 | M32: 0.05131379832 | X32: Hinduism | Y32: 61 | Z32: 0.008391800798
K33: Legally Separated | L33: 48 | M33: 0.006603384234 | X33: Islam | Y33: 76 | Z33: 0.01045535837
K34: Widowed | L34: 44 | M34: 0.006053102215 | X34: Judaism | Y34: 8 | Z34: 0.001100564039
K35: Not Recorded | L35: 295 | M35: 0.04058329894 | X35: Sikhism | Y35: 10 | Z35: 0.001375705049
X36: Other | Y36: 614 | Z36: 0.08446829
X37: Not Declared | Y37: 1079 | Z37: 0.1484385748
X38: Not Recorded | Y38: 693 | Z38: 0.09533635988
K41: Sexual Orientation | L41: Headcount | M41: %
K42: Heterosexual | L42: 5723 | M42: =L42/SUM($L$42:$L$47) -> 0.7873159994
K43: LGB | L43: 205 | M43: =L43/SUM($L$42:$L$47) -> 0.0282019535
K44: Other | L44: 2 | M44: 0.0002751410098
K45: Undecided | L45: 13 | M45: 0.001788416563
K46: Not Declared | L46: 616 | M46: 0.08474343101
K47: Not Recorded | L47: 710 | M47: 0.09767505847

Sheet 2021 Data by Employee Type
B2: Workforce Demographics by Staff Type - 2021
B3: N.B. Staff holding multiple assignments that combined have an FTE of 1 or more have been treated as full time
J26: Age Band | K26: Substantive - Full Time | L26: Substantive - Part Time | M26: Bank
J27: 16-25 | K27: 382 | L27: 76 | M27: 365
J28: 26-35 | K28: 1098 | L28: 488 | M28: 433
J29: 36-45 | K29: 663 | L29: 638 | M29: 285
J30: 46-55 | K30: 765 | L30: 597 | M30: 206
J31: 56-65 | K31: 408 | L31: 516 | M31: 186
J32: 66 and Over | K32: 13 | L32: 88 | M32: 62
J56: Disability | K56: Substantive - Full Time | L56: Substantive - Part Time | M56: Bank
J57: Yes | K57: 109 | L57: 76 | M57: 48
J58: No | K58: 2699 | L58: 1811 | M58: 1290
J59: Not Declared | K59: 34 | L59: 47 | M59: 42
J60: Not Recorded | K60: 487 | L60: 469 | M60: 157
H85: Ethnicity | K85: Substantive - Full Time | L85: Substantive - Part Time | M85: Bank
H86: White British | K86: 2294 | L86: 2004 | M86: 1113
H87: White Other | K87: 290 | L87: 173 | M87: 140
H88: Ethnic Minority (Exlcuding White Minorities) | K88: 694 | L88: 193 | M88: 204
H89: Not Recorded | K89: 51 | L89: 33 | M89: 80
J114: Gender | K114: Substantive - Full Time | L114: Substantive - Part Time | M114: Bank
J115: Female | K115: 2223 | L115: 2154 | M115: 1109
J116: Male | K116: 1106 | L116: 249 | M116: 428
J140: Relationship Status | K140: Substantive - Full Time | L140: Substantive - Part Time | M140: Bank
J141: Single | K141: 1627 | L141: 614 | M141: 781
J142: Married | K142: 1347 | L142: 1489 | M142: 557
J143: Civil Partnership | K143: 45 | L143: 29 | M143: 20
J144: Divorced | K144: 164 | L144: 147 | M144: 62
J145: Legally Separated | K145: 24 | L145: 20 | M145: 4
J146: Widowed | K146: 12 | L146: 25 | M146: 7
J147: Not Recorded | K147: 110 | L147: 79 | M147: 106
J171: Religious Belief | K171: Substantive - Full Time | L171: Substantive - Part Time | M171: Bank
J172: Atheism | K172: 734 | L172: 372 | M172: 356
J173: Buddhism | K173: 21 | L173: 10 | M173: 11
J174: Christianity | K174: 1503 | L174: 1098 | M174: 623
J175: Hinduism | K175: 40 | L175: 9 | M175: 12
J176: Islam | K176: 47 | L176: 8 | M176: 21
J177: Judaism | K177: 3 | L177: 3 | M177: 2
J178: Sikhism | K178: 6 | L178: 2 | M178: 2
J179: Other | K179: 256 | L179: 201 | M179: 157
J180: Not Declared | K180: 428 | L180: 390 | M180: 261
J181: Not Recorded | K181: 291 | L181: 310 | M181: 92
J205: Sexual Orientation | K205: Substantive - Full Time | L205: Substantive - Part Time | M205: Bank
J206: Heterosexual | K206: 2662 | L206: 1827 | M206: 1234
J207: LGB | K207: 118 | L207: 37 | M207: 50
J208: Other | K208: 0 | L208: 0 | M208: 2
J209: Undecided | K209: 2 | L209: 3 | M209: 8
J210: Not Declared | K210: 243 | L210: 218 | M210: 155
J211: Not Recorded | K211: 304 | L211: 318 | M211: 88

Sheet 2021 Data By Pay Band
B2: Workforce Demographics by Pay Band - 2021
B3: Based on Primary Assignment Pay Band
G26: Age Band | H26: Band 1/2 | I26: Band 3 | J26: Band 4 | K26: Band 5 | L26: Band 6 | M26: Band 7 | N26: Band 8A/B | O26: Band 8C-9 | P26: Trainee Grade | Q26: Career Grade | R26: Consultant | S26: Other
G27: 16-25 | H27: 466 | I27: 71 | J27: 38 | K27: 144 | L27: 61 | M27: 6 | N27: 0 | O27: 0 | P27: 35 | Q27: 0 | R27: 0 | S27: 2
G28: 26-35 | H28: 403 | I28: 149 | J28: 119 | K28: 489 | L28: 313 | M28: 126 | N28: 36 | O28: 3 | P28: 364 | Q28: 1 | R28: 8 | S28: 8
G29: 36-45 | H29: 363 | I29: 138 | J29: 67 | K29: 280 | L29: 250 | M29: 160 | N29: 67 | O29: 15 | P29: 87 | Q29: 10 | R29: 140 | S29: 9
G30: 46-55 | H30: 382 | I30: 162 | J30: 74 | K30: 239 | L30: 243 | M30: 205 | N30: 86 | O30: 17 | P30: 17 | Q30: 23 | R30: 102 | S30: 18
G31: 56-65 | H31: 348 | I31: 167 | J31: 67 | K31: 169 | L31: 131 | M31: 82 | N31: 46 | O31: 8 | P31: 4 | Q31: 16 | R31: 55 | S31: 17
G32: 66 and Over | H32: 71 | I32: 33 | J32: 6 | K32: 20 | L32: 10 | M32: 7 | N32: 0 | O32: 0 | P32: 2 | Q32: 2 | R32: 6 | S32: 6
G56: Disability Status | H56: Band 1/2 | I56: Band 3 | J56: Band 4 | K56: Band 5 | L56: Band 6 | M56: Band 7 | N56: Band 8A/B | O56: Band 8C-9 | P56: Trainee Grade | Q56: Career Grade | R56: Consultant | S56: Other
G57: Yes | H57: 81 | I57: 36 | J57: 13 | K57: 45 | L57: 29 | M57: 14 | N57: 3 | O57: 2 | P57: 6 | Q57: 0 | R57: 2 | S57: 2
G58: No | H58: 1639 | I58: 564 | J58: 289 | K58: 1093 | L58: 807 | M58: 423 | N58: 175 | O58: 32 | P58: 477 | Q58: 19 | R58: 236 | S58: 46
G59: Not Declared | H59: 31 | I59: 13 | J59: 5 | K59: 26 | L59: 21 | M59: 10 | N59: 2 | O59: 1 | P59: 13 | Q59: 1 | R59: 0 | S59: 0
G60: Not Recorded | H60: 282 | I60: 107 | J60: 64 | K60: 177 | L60: 151 | M60: 139 | N60: 55 | O60: 8 | P60: 13 | Q60: 32 | R60: 73 | S60: 12
E84: Ethnicity | H84: Band 1/2 | I84: Band 3 | J84: Band 4 | K84: Band 5 | L84: Band 6 | M84: Band 7 | N84: Band 8A/B | O84: Band 8C-9 | P84: Trainee Grade | Q84: Career Grade | R84: Consultant | S84: Other
E85: White British | H85: 1444 | I85: 613 | J85: 300 | K85: 821 | L85: 808 | M85: 494 | N85: 212 | O85: 37 | P85: 364 | Q85: 31 | R85: 241 | S85: 46
E86: White Other | H86: 244 | I86: 46 | J86: 15 | K86: 99 | L86: 76 | M86: 39 | N86: 14 | O86: 1 | P86: 40 | Q86: 6 | R86: 17 | S86: 6
E87: Ethnic Minority (Exlcuding White Minorities) | H87: 297 | I87: 47 | J87: 51 | K87: 389 | L87: 106 | M87: 43 | N87: 5 | O87: 4 | P87: 81 | Q87: 15 | R87: 49 | S87: 4
E88: Not Recorded | H88: 48 | I88: 14 | J88: 5 | K88: 32 | L88: 18 | M88: 10 | N88: 4 | O88: 1 | P88: 24 | Q88: 0 | R88: 4 | S88: 4
G112: Gender | H112: Band 1/2 | I112: Band 3 | J112: Band 4 | K112: Band 5 | L112: Band 6 | M112: Band 7 | N112: Band 8A/B | O112: Band 8C-9 | P112: Trainee Grade | Q112: Career Grade | R112: Consultant | S112: Other
G113: Female | H113: 1432 | I113: 591 | J113: 305 | K113: 1126 | L113: 866 | M113: 478 | N113: 183 | O113: 22 | P113: 286 | Q113: 31 | R113: 126 | S113: 40
G114: Male | H114: 601 | I114: 129 | J114: 66 | K114: 215 | L114: 142 | M114: 108 | N114: 52 | O114: 21 | P114: 223 | Q114: 21 | R114: 185 | S114: 20
G140: Relationship Status | H140: Band 1/2 | I140: Band 3 | J140: Band 4 | K140: Band 5 | L140: Band 6 | M140: Band 7 | N140: Band 8A/B | O140: Band 8C-9 | P140: Trainee Grade | Q140: Career Grade | R140: Consultant | S140: Other
G141: Single | H141: 975 | I141: 241 | J141: 156 | K141: 634 | L141: 379 | M141: 170 | N141: 62 | O141: 9 | P141: 322 | Q141: 10 | R141: 50 | S141: 14
G142: Married | H142: 776 | I142: 353 | J142: 168 | K142: 578 | L142: 533 | M142: 346 | N142: 149 | O142: 28 | P142: 151 | Q142: 38 | R142: 243 | S142: 30
G143: Civil Partnership | H143: 37 | I143: 15 | J143: 6 | K143: 12 | L143: 8 | M143: 9 | N143: 0 | O143: 0 | P143: 4 | Q143: 0 | R143: 2 | S143: 1
G144: Divorced | H144: 125 | I144: 67 | J144: 21 | K144: 55 | L144: 39 | M144: 30 | N144: 19 | O144: 5 | P144: 2 | Q144: 1 | R144: 6 | S144: 3
G145: Legally Separated | H145: 17 | I145: 11 | J145: 3 | K145: 5 | L145: 4 | M145: 5 | N145: 1 | O145: 0 | P145: 0 | Q145: 1 | R145: 0 | S145: 1
G146: Widowed | H146: 18 | I146: 5 | J146: 1 | K146: 8 | L146: 5 | M146: 3 | N146: 0 | O146: 0 | P146: 0 | Q146: 0 | R146: 2 | S146: 2
G147: Not Recorded | H147: 85 | I147: 28 | J147: 16 | K147: 49 | L147: 40 | M147: 23 | N147: 4 | O147: 1 | P147: 30 | Q147: 2 | R147: 8 | S147: 9
G171: Religious Belief | H171: Band 1/2 | I171: Band 3 | J171: Band 4 | K171: Band 5 | L171: Band 6 | M171: Band 7 | N171: Band 8A/B | O171: Band 8C-9 | P171: Trainee Grade | Q171: Career Grade | R171: Consultant | S171: Other
G172: Atheism | H172: 378 | I172: 124 | J172: 85 | K172: 258 | L172: 201 | M172: 103 | N172: 43 | O172: 8 | P172: 191 | Q172: 2 | R172: 57 | S172: 12
G173: Buddhism | H173: 17 | I173: 2 | J173: 0 | K173: 7 | L173: 6 | M173: 1 | N173: 0 | O173: 0 | P173: 6 | Q173: 0 | R173: 2 | S173: 1
G174: Christianity | H174: 919 | I174: 335 | J174: 153 | K174: 684 | L174: 477 | M174: 246 | N174: 99 | O174: 19 | P174: 152 | Q174: 11 | R174: 107 | S174: 22
G175: Hinduism | H175: 10 | I175: 1 | J175: 1 | K175: 12 | L175: 6 | M175: 7 | N175: 1 | O175: 1 | P175: 12 | Q175: 2 | R175: 7 | S175: 1
G176: Islam | H176: 23 | I176: 4 | J176: 3 | K176: 12 | L176: 6 | M176: 2 | N176: 0 | O176: 1 | P176: 15 | Q176: 2 | R176: 8 | S176: 0
G177: Judaism | H177: 2 | I177: 1 | J177: 0 | K177: 0 | L177: 1 | M177: 1 | N177: 0 | O177: 0 | P177: 1 | Q177: 0 | R177: 2 | S177: 0
G178: Sikhism | H178: 2 | I178: 0 | J178: 0 | K178: 1 | L178: 1 | M178: 1 | N178: 1 | O178: 0 | P178: 2 | Q178: 0 | R178: 2 | S178: 0
G179: Other | H179: 201 | I179: 90 | J179: 40 | K179: 95 | L179: 77 | M179: 44 | N179: 21 | O179: 1 | P179: 25 | Q179: 2 | R179: 13 | S179: 5
G180: Not Declared | H180: 297 | I180: 102 | J180: 53 | K180: 166 | L180: 151 | M180: 103 | N180: 40 | O180: 8 | P180: 97 | Q180: 6 | R180: 47 | S180: 9
G181: Not Recorded | H181: 184 | I181: 61 | J181: 36 | K181: 106 | L181: 82 | M181: 78 | N181: 30 | O181: 5 | P181: 8 | Q181: 27 | R181: 66 | S181: 10
G205: Sexual Orientation | H205: Band 1/2 | I205: Band 3 | J205: Band 4 | K205: Band 5 | L205: Band 6 | M205: Band 7 | N205: Band 8A/B | O205: Band 8C-9 | P205: Trainee Grade | Q205: Career Grade | R205: Consultant | S205: Other
G206: Heterosexual | H206: 1606 | I206: 580 | J206: 297 | K206: 1087 | L206: 817 | M206: 432 | N206: 182 | O206: 31 | P206: 417 | Q206: 19 | R206: 215 | S206: 40
G207: LGB | H207: 58 | I207: 20 | J207: 13 | K207: 39 | L207: 21 | M207: 23 | N207: 3 | O207: 2 | P207: 17 | Q207: 1 | R207: 4 | S207: 4
G208: Other | H208: 2 | I208: 0 | J208: 0 | K208: 0 | L208: 0 | M208: 0 | N208: 0 | O208: 0 | P208: 0 | Q208: 0 | R208: 0 | S208: 0
G209: Undecided | H209: 9 | I209: 0 | J209: 0 | K209: 2 | L209: 0 | M209: 0 | N209: 1 | O209: 0 | P209: 1 | Q209: 0 | R209: 0 | S209: 0
G210: Not Declared | H210: 170 | I210: 59 | J210: 25 | K210: 106 | L210: 80 | M210: 51 | N210: 19 | O210: 5 | P210: 67 | Q210: 4 | R210: 24 | S210: 6
G211: Not Recorded | H211: 188 | I211: 61 | J211: 36 | K211: 107 | L211: 90 | M211: 80 | N211: 30 | O211: 5 | P211: 7 | Q211: 28 | R211: 68 | S211: 10

Sheet Year on Year Comparison
B2: Workforce Demographics Year on Year Comparison
K26: Age Band | L26: 2021 | M26: 2020 | N26: 2019 | O26: 2018 | P26: 2017
K27: 16-25 | L27: ='2021 Summary'!M7 -> 0.1132205255 | M27: 0.1058933292 | N27: 0.1022675392 | O27: 0.1082305169 | P27: 0.1068554876
K28: 26-35 | L28: ='2021 Summary'!M8 -> 0.2777548494 | M28: 0.2609236511 | N28: 0.2596256278 | O28: 0.2511322817 | P28: 0.2518506598
K29: 36-45 | L29: ='2021 Summary'!M9 -> 0.2181868207 | M29: 0.2155185819 | N29: 0.2148835794 | O29: 0.2203654537 | P29: 0.2209526875
K30: 46-55 | L30: ='2021 Summary'!M10 -> 0.2157105517 | M30: 0.2358886643 | N30: 0.2410591995 | O30: 0.242698735 | P30: 0.2439652398
K31: 56-65 | L31: ='2021 Summary'!M11 -> 0.1527032604 | M31: 0.1629606593 | N31: 0.1584233754 | O31: 0.1536779635 | P31: 0.1515931767
K32: 66 and Over | L32: ='2021 Summary'!M12 -> 0.0224239923 | M32: 0.01881511429 | N32: 0.02374067874 | O32: 0.0238950492 | P32: 0.02478274863
K56: Disability | L56: 2021 | M56: 2020 | N56: 2019 | O56: 2018 | P56: 2017
K57: Yes | L57: ='2021 Summary'!Z8 -> 0.03205392764 | M57: 0.03343181465 | N57: 0.031958606 | O57: 0.03295330314 | P57: 0.03331187641
K58: No | L58: ='2021 Summary'!Z9 -> 0.7979089283 | M58: 0.7813714819 | N58: 0.7662456247 | O58: 0.7391847571 | P58: 0.7030897972
K59: Not Declared | L59: ='2021 Summary'!Z10 -> 0.0169211721 | M59: 0.01554968123 | N59: 0.0140009131 | O59: 0.01155708262 | P59: 0.008690054715
K60: Not Recorded | L60: ='2021 Summary'!Z11 -> 0.1531159719 | M60: 0.1696470222 | N60: 0.1877948562 | O60: 0.2163048571 | P60: 0.2549082716
K84: Ethnicity | L84: 2021 | M84: 2020 | N84: 2019 | O84: 2018 | P84: 2017
K85: White British | L85: ='2021 Summary'!M18 -> 0.7443940019 | M85: 0.7648888198 | N85: 0.7657890732 | O85: 0.776823364 | P85: 0.7779208239
K86: White Other | L86: ='2021 Summary'!M19 -> 0.08295501444 | M86: 0.09236510652 | N86: 0.09663673718 | O86: 0.1019834453 | P86: 0.1095912456
K87: BME | L87: ='2021 Summary'!M20 -> 0.1500894208 | M87: 0.1289068574 | N87: 0.1252472987 | O87: 0.114165235 | P87: 0.1062117799
K88: Not Recorded | L88: ='2021 Summary'!M21 -> 0.0225615628 | M88: 0.0138392163 | N88: 0.01232689088 | O88: 0.007027955646 | P88: 0.006276150628
K112: Gender | L112: 2021 | M112: 2020 | N112: 2019 | O112: 2018 | P112: 2017
K113: Female | L113: ='2021 Summary'!Z18 -> 0.7547117898 | M113: 0.7624008708 | N113: 0.7703545883 | O113: 0.7782289552 | P113: 0.772610235
K114: Male | L114: ='2021 Summary'!Z19 -> 0.2452882102 | M114: 0.2375991292 | N114: 0.2296454117 | O114: 0.2217710448 | P114: 0.227389765
K138: Relationship Status | L138: 2021 | M138: 2020 | N138: 2019 | O138: 2018 | P138: 2017
K139: Single | L139: ='2021 Summary'!M29 -> 0.4157380658 | M139: 0.3982273363 | N139: 0.3877644194 | O139: 0.3938778697 | P139: 0.3934663663
K140: Married | L140: ='2021 Summary'!M30 -> 0.4667767231 | M140: 0.4877935002 | N140: 0.4987064374 | O140: 0.4974230829 | P140: 0.5012874155
K141: Civil Partnership | L141: ='2021 Summary'!M31 -> 0.01293162746 | M141: 0.01166226092 | N141: 0.01171815553 | O141: 0.01093237545 | P141: 0.007402639202
K142: Divorced | L142: ='2021 Summary'!M32 -> 0.05131379832 | M142: 0.05271341937 | N142: 0.05250342414 | O142: 0.04872715914 | P142: 0.05230125523
K143: Legally Separated | L143: ='2021 Summary'!M33 -> 0.006603384234 | M143: 0.009018815114 | N143: 0.008370111094 | O143: 0.009214430736 | P143: 0.01029932411
K144: Widowed | L144: ='2021 Summary'!M34 -> 0.006053102215 | M144: 0.007463846991 | N144: 0.007000456552 | O144: 0.006559425269 | P144: 0.006115223688
K145: Not Recorded | L145: ='2021 Summary'!M35 -> 0.04058329894 | M145: 0.03312082102 | N145: 0.03393699589 | O145: 0.03326565672 | P145: 0.02912777599
K169: Religious Belief | L169: 2021 | M169: 2020 | N169: 2019 | O169: 2018 | P169: 2017
K170: Atheism | L170: ='2021 Summary'!Z29 -> 0.2011280781 | M170: ='2021 Summary'!AA29 -> 0 | N170: 0.171054634 | O170: 0.1641418085 | P170: 0.1483746379
K171: Buddhism | L171: ='2021 Summary'!Z30 -> 0.005777961205 | M171: ='2021 Summary'!AA30 -> 0 | N171: 0.004869882818 | O171: 0.004841480556 | P171: 0.004023173479
K172: Christianity | L172: ='2021 Summary'!Z31 -> 0.4435273077 | M172: ='2021 Summary'!AA31 -> 0 | N172: 0.4462030132 | O172: 0.4397938466 | P172: 0.4341808819
K173: Hinduism | L173: ='2021 Summary'!Z32 -> 0.008391800798 | M173: ='2021 Summary'!AA32 -> 0 | N173: 0.007457008066 | O173: 0.00734030923 | P173: 0.006276150628
K174: Islam | L174: ='2021 Summary'!Z33 -> 0.01045535837 | M174: ='2021 Summary'!AA33 -> 0 | N174: 0.008217927256 | O174: 0.007652662814 | P174: 0.006276150628
K175: Judaism | L175: ='2021 Summary'!Z34 -> 0.001100564039 | M175: ='2021 Summary'!AA34 -> 0 | N175: 0.0009131030285 | O175: 0.0007808839606 | P175: 0.0006437077567
K176: Sikhism | L176: ='2021 Summary'!Z35 -> 0.001375705049 | M176: ='2021 Summary'!AA35 -> 0 | N176: 0.001369654543 | O176: 0.001405591129 | P176: 0.001287415513
K177: Other | L177: ='2021 Summary'!Z36 -> 0.08446829 | M177: ='2021 Summary'!AA36 -> 0 | N177: 0.08339674327 | O177: 0.07793221927 | P177: 0.07627936917
K178: Not Declared | L178: ='2021 Summary'!Z37 -> 0.1484385748 | M178: ='2021 Summary'!AA37 -> 0 | N178: 0.1523360219 | O178: 0.1511791348 | P178: 0.1709044094
K179: Not Recorded | L179: ='2021 Summary'!Z38 -> 0.09533635988 | M179: ='2021 Summary'!AA38 -> 0 | N179: 0.1241820119 | O179: 0.1449320631 | P179: 0.1517541036
K203: Sexual Orientation | L203: 2021 | M203: 2020 | N203: 2019 | O203: 2018 | P203: 2017
K204: Heterosexual | L204: ='2021 Summary'!M42 -> 0.7873159994 | M204: 0.7816824755 | N204: 0.7636584995 | O204: 0.7421521162 | P204: 0.5991281274
K205: LGB | L205: ='2021 Summary'!M43 -> 0.0282019535 | M205: 0.02254703779 | N205: 0.01841424441 | O205: 0.01764797751 | P205: 0.01175132676
K206: Other | L206: ='2021 Summary'!M44 -> 0.0002751410098 | M206: 0.0001554968123 | N206: 0.0001521838381 | O206: - | P206: -
K207: Undecided | L207: ='2021 Summary'!M45 -> 0.001788416563 | M207: 0.001243974499 | N207: 0.0009131030285 | O207: - | P207: -
K208: Not Declared | L208: ='2021 Summary'!M46 -> 0.08474343101 | M208: 0.08241331053 | N208: 0.08887536144 | O208: 0.0913634234 | P208: 0.09950720243
K209: Not Recorded | L209: ='2021 Summary'!M47 -> 0.09767505847 | M209: 0.1119577049 | N209: 0.1279866078 | O209: 0.1488364829 | P209: 0.2896133434

Sheet A Graph Data (hidden)
B2: Age Band | C2: Value | E2: Percentage | H2: Dividers | I2: 6
A3: Band 1/2 | B3: 16-25 | D3: ='2021 Data By Pay Band'!H27 -> 466 | F3: =D3/SUM($D$3:$D$8) -> 0.2292179046 | I3: X | J3: Y
B4: 26-35 | D4: ='2021 Data By Pay Band'!H28 -> 403 | F4: 0.1982292179 | H4: 1 | I4: =$I$2*H4+0.5 -> 6.5 | J4: 0
B5: 36-45 | D5: ='2021 Data By Pay Band'!H29 -> 363 | F5: 0.1785538613 | H5: 2 | I5: =$I$2*H5+0.5 -> 12.5 | J5: 0
B6: 46-55 | D6: ='2021 Data By Pay Band'!H30 -> 382 | F6: 0.1878996557 | H6: 3 | I6: =$I$2*H6+0.5 -> 18.5 | J6: 0
B7: 56-65 | D7: ='2021 Data By Pay Band'!H31 -> 348 | F7: 0.1711756026 | H7: 4 | I7: 24.5 | J7: 0
B8: >65 | D8: ='2021 Data By Pay Band'!H32 -> 71 | F8: 0.03492375799 | H8: 5 | I8: 30.5 | J8: 0
A9: Band 3 | B9: 16-25 | C9: ='2021 Data By Pay Band'!I27 -> 71 | E9: =C9/SUM($C$9:$C$14) -> 0.09861111111 | H9: 6 | I9: 36.5 | J9: 0
B10: 26-35 | C10: ='2021 Data By Pay Band'!I28 -> 149 | E10: 0.2069444444 | H10: 7 | I10: 42.5 | J10: 0
B11: 36-45 | C11: ='2021 Data By Pay Band'!I29 -> 138 | E11: 0.1916666667 | H11: 8 | I11: 48.5 | J11: 0
B12: 46-55 | C12: ='2021 Data By Pay Band'!I30 -> 162 | E12: 0.225 | H12: 9 | I12: 54.5 | J12: 0
B13: 56-65 | C13: ='2021 Data By Pay Band'!I31 -> 167 | E13: 0.2319444444 | H13: 10 | I13: 60.5 | J13: 0
B14: >65 | C14: ='2021 Data By Pay Band'!I32 -> 33 | E14: 0.04583333333 | H14: 11 | I14: 66.5 | J14: 0
A15: Band 4 | B15: 16-25 | D15: ='2021 Data By Pay Band'!J27 -> 38 | F15: =D15/SUM($D$15:$D$20) -> 0.102425876 | H15: 12 | I15: 72.5 | J15: 0
B16: 26-35 | D16: ='2021 Data By Pay Band'!J28 -> 119 | F16: 0.320754717
B17: 36-45 | D17: ='2021 Data By Pay Band'!J29 -> 67 | F17: 0.1805929919
B18: 46-55 | D18: ='2021 Data By Pay Band'!J30 -> 74 | F18: 0.1994609164
B19: 56-65 | D19: ='2021 Data By Pay Band'!J31 -> 67 | F19: 0.1805929919
B20: >65 | D20: ='2021 Data By Pay Band'!J32 -> 6 | F20: 0.01617250674
A21: Band 5 | B21: 16-25 | C21: ='2021 Data By Pay Band'!K27 -> 144 | E21: =C21/SUM($C$21:$C$26) -> 0.1073825503
B22: 26-35 | C22: ='2021 Data By Pay Band'!K28 -> 489 | E22: 0.3646532438
B23: 36-45 | C23: ='2021 Data By Pay Band'!K29 -> 280 | E23: 0.2087994034
B24: 46-55 | C24: ='2021 Data By Pay Band'!K30 -> 239 | E24: 0.1782252051
B25: 56-65 | C25: ='2021 Data By Pay Band'!K31 -> 169 | E25: 0.1260253542
B26: >65 | C26: ='2021 Data By Pay Band'!K32 -> 20 | E26: 0.0149142431
A27: Band 6 | B27: 16-25 | D27: ='2021 Data By Pay Band'!L27 -> 61 | F27: =D27/SUM($D$27:$D$32) -> 0.06051587302
B28: 26-35 | D28: ='2021 Data By Pay Band'!L28 -> 313 | F28: 0.310515873
B29: 36-45 | D29: ='2021 Data By Pay Band'!L29 -> 250 | F29: 0.248015873
B30: 46-55 | D30: ='2021 Data By Pay Band'!L30 -> 243 | F30: 0.2410714286
B31: 56-65 | D31: ='2021 Data By Pay Band'!L31 -> 131 | F31: 0.1299603175
B32: >65 | D32: ='2021 Data By Pay Band'!L32 -> 10 | F32: 0.009920634921
A33: Band 7 | B33: 16-25 | C33: ='2021 Data By Pay Band'!M27 -> 6 | E33: =C33/SUM($C$33:$C$38) -> 0.01023890785
B34: 26-35 | C34: ='2021 Data By Pay Band'!M28 -> 126 | E34: 0.2150170648
B35: 36-45 | C35: ='2021 Data By Pay Band'!M29 -> 160 | E35: 0.2730375427
B36: 46-55 | C36: ='2021 Data By Pay Band'!M30 -> 205 | E36: 0.3498293515
B37: 56-65 | C37: ='2021 Data By Pay Band'!M31 -> 82 | E37: 0.1399317406
B38: >65 | C38: ='2021 Data By Pay Band'!M32 -> 7 | E38: 0.01194539249
A39: Band 8A/B | B39: 16-25 | D39: ='2021 Data By Pay Band'!N27 -> 0 | F39: =D39/SUM($D$39:$D$44) -> 0
B40: 26-35 | D40: ='2021 Data By Pay Band'!N28 -> 36 | F40: 0.1531914894
B41: 36-45 | D41: ='2021 Data By Pay Band'!N29 -> 67 | F41: 0.285106383
B42: 46-55 | D42: ='2021 Data By Pay Band'!N30 -> 86 | F42: 0.3659574468
B43: 56-65 | D43: ='2021 Data By Pay Band'!N31 -> 46 | F43: 0.1957446809
B44: >65 | D44: ='2021 Data By Pay Band'!N32 -> 0 | F44: 0
A45: Band 8C-9 | B45: 16-25 | C45: ='2021 Data By Pay Band'!O27 -> 0 | E45: =C45/SUM($C$45:$C$50) -> 0
B46: 26-35 | C46: ='2021 Data By Pay Band'!O28 -> 3 | E46: 0.06976744186
B47: 36-45 | C47: ='2021 Data By Pay Band'!O29 -> 15 | E47: 0.3488372093
B48: 46-55 | C48: ='2021 Data By Pay Band'!O30 -> 17 | E48: 0.3953488372
B49: 56-65 | C49: ='2021 Data By Pay Band'!O31 -> 8 | E49: 0.1860465116
B50: >65 | C50: ='2021 Data By Pay Band'!O32 -> 0 | E50: 0
A51: Trainee Grade Doctor | B51: 16-25 | D51: ='2021 Data By Pay Band'!P27 -> 35 | F51: =D51/SUM($D$51:$D$56) -> 0.06876227898
B52: 26-35 | D52: ='2021 Data By Pay Band'!P28 -> 364 | F52: 0.7151277014
B53: 36-45 | D53: ='2021 Data By Pay Band'!P29 -> 87 | F53: 0.1709233792
B54: 46-55 | D54: ='2021 Data By Pay Band'!P30 -> 17 | F54: 0.03339882122
B55: 56-65 | D55: ='2021 Data By Pay Band'!P31 -> 4 | F55: 0.007858546169
B56: >65 | D56: ='2021 Data By Pay Band'!P32 -> 2 | F56: 0.003929273084
A57: Career Grade Doctor | B57: 16-25 | C57: ='2021 Data By Pay Band'!Q27 -> 0 | E57: =C57/SUM($C$57:$C$62) -> 0
B58: 26-35 | C58: ='2021 Data By Pay Band'!Q28 -> 1 | E58: 0.01923076923
B59: 36-45 | C59: ='2021 Data By Pay Band'!Q29 -> 10 | E59: 0.1923076923
B60: 46-55 | C60: ='2021 Data By Pay Band'!Q30 -> 23 | E60: 0.4423076923
B61: 56-65 | C61: ='2021 Data By Pay Band'!Q31 -> 16 | E61: 0.3076923077
B62: >65 | C62: ='2021 Data By Pay Band'!Q32 -> 2 | E62: 0.03846153846
A63: Consultant | B63: 16-25 | D63: ='2021 Data By Pay Band'!R27 -> 0 | F63: =D63/SUM($D$63:$D$68) -> 0
B64: 26-35 | D64: ='2021 Data By Pay Band'!R28 -> 8 | F64: =D64/SUM($D$39:$D$44) -> 0.03404255319
B65: 36-45 | D65: ='2021 Data By Pay Band'!R29 -> 140 | F65: =D65/SUM($D$39:$D$44) -> 0.5957446809
B66: 46-55 | D66: ='2021 Data By Pay Band'!R30 -> 102 | F66: =D66/SUM($D$39:$D$44) -> 0.4340425532
B67: 56-65 | D67: ='2021 Data By Pay Band'!R31 -> 55 | F67: =D67/SUM($D$39:$D$44) -> 0.2340425532
B68: >65 | D68: ='2021 Data By Pay Band'!R32 -> 6 | F68: =D68/SUM($D$39:$D$44) -> 0.02553191489
A69: Other | B69: 16-25 | C69: ='2021 Data By Pay Band'!S27 -> 2 | E69: =C69/SUM($C$69:$C$74) -> 0.03333333333
B70: 26-35 | C70: ='2021 Data By Pay Band'!S28 -> 8 | E70: 0.1333333333
B71: 36-45 | C71: ='2021 Data By Pay Band'!S29 -> 9 | E71: 0.15
B72: 46-55 | C72: ='2021 Data By Pay Band'!S30 -> 18 | E72: 0.3
B73: 56-65 | C73: ='2021 Data By Pay Band'!S31 -> 17 | E73: 0.2833333333
B74: >65 | C74: ='2021 Data By Pay Band'!S32 -> 6 | E74: 0.1

Sheet D Graph Data (hidden)
B2: Disability | C2: Value | E2: Percentage | H2: Dividers | I2: 4
A3: Band 1/2 | B3: Y | D3: ='2021 Data By Pay Band'!H57 -> 81 | F3: =D3/SUM($D$3:$D$6) -> 0.03984259715 | I3: X | J3: Y
B4: N | D4: ='2021 Data By Pay Band'!H58 -> 1639 | F4: =D4/SUM($D$3:$D$6) -> 0.8061977373 | H4: 1 | I4: =$I$2*H4+0.5 -> 4.5 | J4: 0
B5: ND | D5: ='2021 Data By Pay Band'!H59 -> 31 | F5: =D5/SUM($D$3:$D$6) -> 0.01524840138 | H5: 2 | I5: =$I$2*H5+0.5 -> 8.5 | J5: 0
B6: NR | D6: ='2021 Data By Pay Band'!H60 -> 282 | F6: =D6/SUM($D$3:$D$6) -> 0.1387112641 | H6: 3 | I6: =$I$2*H6+0.5 -> 12.5 | J6: 0
A7: Band 3 | B7: Y | C7: ='2021 Data By Pay Band'!I57 -> 36 | E7: =C7/SUM($C$7:$C$10) -> 0.05 | H7: 4 | I7: 16.5 | J7: 0
B8: N | C8: ='2021 Data By Pay Band'!I58 -> 564 | E8: =C8/SUM($C$7:$C$10) -> 0.7833333333 | H8: 5 | I8: 20.5 | J8: 0
B9: ND | C9: ='2021 Data By Pay Band'!I59 -> 13 | E9: =C9/SUM($C$7:$C$10) -> 0.01805555556 | H9: 6 | I9: 24.5 | J9: 0
B10: NR | C10: ='2021 Data By Pay Band'!I60 -> 107 | E10: =C10/SUM($C$7:$C$10) -> 0.1486111111 | H10: 7 | I10: 28.5 | J10: 0
A11: Band 4 | B11: Y | D11: ='2021 Data By Pay Band'!J57 -> 13 | F11: =D11/SUM($D$11:$D$14) -> 0.03504043127 | H11: 8 | I11: 32.5 | J11: 0
B12: N | D12: ='2021 Data By Pay Band'!J58 -> 289 | F12: =D12/SUM($D$11:$D$14) -> 0.7789757412 | H12: 9 | I12: 36.5 | J12: 0
B13: ND | D13: ='2021 Data By Pay Band'!J59 -> 5 | F13: =D13/SUM($D$11:$D$14) -> 0.01347708895 | H13: 10 | I13: 40.5 | J13: 0
B14: NR | D14: ='2021 Data By Pay Band'!J60 -> 64 | F14: =D14/SUM($D$11:$D$14) -> 0.1725067385 | H14: 11 | I14: 44.5 | J14: 0
A15: Band 5 | B15: Y | C15: ='2021 Data By Pay Band'!K57 -> 45 | E15: =C15/SUM($C$15:$C$18) -> 0.03355704698 | H15: 12 | I15: 48.5 | J15: 0
B16: N | C16: ='2021 Data By Pay Band'!K58 -> 1093 | E16: =C16/SUM($C$15:$C$18) -> 0.8150633855
B17: ND | C17: ='2021 Data By Pay Band'!K59 -> 26 | E17: =C17/SUM($C$15:$C$18) -> 0.01938851603
B18: NR | C18: ='2021 Data By Pay Band'!K60 -> 177 | E18: =C18/SUM($C$15:$C$18) -> 0.1319910515
A19: Band 6 | B19: Y | D19: ='2021 Data By Pay Band'!L57 -> 29 | F19: =D19/SUM($D$19:$D$22) -> 0.02876984127
B20: N | D20: ='2021 Data By Pay Band'!L58 -> 807 | F20: =D20/SUM($D$19:$D$22) -> 0.8005952381
B21: ND | D21: ='2021 Data By Pay Band'!L59 -> 21 | F21: =D21/SUM($D$19:$D$22) -> 0.02083333333
B22: NR | D22: ='2021 Data By Pay Band'!L60 -> 151 | F22: =D22/SUM($D$19:$D$22) -> 0.1498015873
A23: Band 7 | B23: Y | C23: ='2021 Data By Pay Band'!M57 -> 14 | E23: =C23/SUM($C$23:$C$26) -> 0.02389078498
B24: N | C24: ='2021 Data By Pay Band'!M58 -> 423 | E24: =C24/SUM($C$23:$C$26) -> 0.7218430034
B25: ND | C25: ='2021 Data By Pay Band'!M59 -> 10 | E25: =C25/SUM($C$23:$C$26) -> 0.01706484642
B26: NR | C26: ='2021 Data By Pay Band'!M60 -> 139 | E26: =C26/SUM($C$23:$C$26) -> 0.2372013652
A27: Band 8A/B | B27: Y | D27: ='2021 Data By Pay Band'!N57 -> 3 | F27: =D27/SUM($D$27:$D$30) -> 0.01276595745
B28: N | D28: ='2021 Data By Pay Band'!N58 -> 175 | F28: =D28/SUM($D$27:$D$30) -> 0.7446808511
B29: ND | D29: ='2021 Data By Pay Band'!N59 -> 2 | F29: =D29/SUM($D$27:$D$30) -> 0.008510638298
B30: NR | D30: ='2021 Data By Pay Band'!N60 -> 55 | F30: =D30/SUM($D$27:$D$30) -> 0.2340425532
A31: Band 8C- 9 | B31: Y | C31: ='2021 Data By Pay Band'!O57 -> 2 | E31: =C31/SUM($C$31:$C$34) -> 0.04651162791
B32: N | C32: ='2021 Data By Pay Band'!O58 -> 32 | E32: =C32/SUM($C$31:$C$34) -> 0.7441860465
B33: ND | C33: ='2021 Data By Pay Band'!O59 -> 1 | E33: =C33/SUM($C$31:$C$34) -> 0.02325581395
B34: NR | C34: ='2021 Data By Pay Band'!O60 -> 8 | E34: =C34/SUM($C$31:$C$34) -> 0.1860465116
A35: Trainee Grade Doctor | B35: Y | D35: ='2021 Data By Pay Band'!P57 -> 6 | F35: =D35/SUM($D$35:$D$38) -> 0.01178781925
B36: N | D36: ='2021 Data By Pay Band'!P58 -> 477 | F36: =D36/SUM($D$35:$D$38) -> 0.9371316306
B37: ND | D37: ='2021 Data By Pay Band'!P59 -> 13 | F37: =D37/SUM($D$35:$D$38) -> 0.02554027505
B38: NR | D38: ='2021 Data By Pay Band'!P60 -> 13 | F38: =D38/SUM($D$35:$D$38) -> 0.02554027505
A39: Career Grade Doctor | B39: Y | C39: ='2021 Data By Pay Band'!Q57 -> 0 | E39: =C39/SUM($C$39:$C$42) -> 0
B40: N | C40: ='2021 Data By Pay Band'!Q58 -> 19 | E40: =C40/SUM($C$39:$C$42) -> 0.3653846154
B41: ND | C41: ='2021 Data By Pay Band'!Q59 -> 1 | E41: =C41/SUM($C$39:$C$42) -> 0.01923076923
B42: NR | C42: ='2021 Data By Pay Band'!Q60 -> 32 | E42: =C42/SUM($C$39:$C$42) -> 0.6153846154
A43: Consultant | B43: Y | D43: ='2021 Data By Pay Band'!R57 -> 2 | F43: =D43/SUM($D$43:$D$46) -> 0.006430868167
B44: N | D44: ='2021 Data By Pay Band'!R58 -> 236 | F44: =D44/SUM($D$27:$D$30) -> 1.004255319
B45: ND | D45: ='2021 Data By Pay Band'!R59 -> 0 | F45: =D45/SUM($D$27:$D$30) -> 0
B46: NR | D46: ='2021 Data By Pay Band'!R60 -> 73 | F46: =D46/SUM($D$27:$D$30) -> 0.3106382979
A47: Other | B47: Y | C47: ='2021 Data By Pay Band'!S57 -> 2 | E47: =C47/SUM($C$47:$C$50) -> 0.03333333333
B48: N | C48: ='2021 Data By Pay Band'!S58 -> 46 | E48: =C48/SUM($C$47:$C$50) -> 0.7666666667
B49: ND | C49: ='2021 Data By Pay Band'!S59 -> 0 | E49: =C49/SUM($C$47:$C$50) -> 0
B50: NR | C50: ='2021 Data By Pay Band'!S60 -> 12 | E50: =C50/SUM($C$47:$C$50) -> 0.2

Sheet E Graph Data (hidden)
B2: Ethnicity | C2: Value | E2: Percentage | H2: Dividers | I2: 4
A3: Band 1/2 | B3: WB | D3: ='2021 Data By Pay Band'!H85 -> 1444 | F3: =D3/SUM($D$3:$D$6) -> 0.7102803738 | I3: X | J3: Y
B4: WO | D4: ='2021 Data By Pay Band'!H86 -> 244 | F4: =D4/SUM($D$3:$D$6) -> 0.1200196754 | H4: 1 | I4: =$I$2*H4+0.5 -> 4.5 | J4: 0
B5: EM(OWM) | D5: ='2021 Data By Pay Band'!H87 -> 297 | F5: =D5/SUM($D$3:$D$6) -> 0.1460895229 | H5: 2 | I5: =$I$2*H5+0.5 -> 8.5 | J5: 0
B6: NR | D6: ='2021 Data By Pay Band'!H88 -> 48 | F6: =D6/SUM($D$3:$D$6) -> 0.02361042794 | H6: 3 | I6: =$I$2*H6+0.5 -> 12.5 | J6: 0
A7: Band 3 | B7: WB | C7: ='2021 Data By Pay Band'!I85 -> 613 | E7: =C7/SUM($C$7:$C$10) -> 0.8513888889 | H7: 4 | I7: 16.5 | J7: 0
B8: WO | C8: ='2021 Data By Pay Band'!I86 -> 46 | E8: =C8/SUM($C$7:$C$10) -> 0.06388888889 | H8: 5 | I8: 20.5 | J8: 0
B9: EM(OWM) | C9: ='2021 Data By Pay Band'!I87 -> 47 | E9: =C9/SUM($C$7:$C$10) -> 0.06527777778 | H9: 6 | I9: 24.5 | J9: 0
B10: NR | C10: ='2021 Data By Pay Band'!I88 -> 14 | E10: =C10/SUM($C$7:$C$10) -> 0.01944444444 | H10: 7 | I10: 28.5 | J10: 0
A11: Band 4 | B11: WB | D11: ='2021 Data By Pay Band'!J85 -> 300 | F11: =D11/SUM($D$11:$D$14) -> 0.8086253369 | H11: 8 | I11: 32.5 | J11: 0
B12: WO | D12: ='2021 Data By Pay Band'!J86 -> 15 | F12: =D12/SUM($D$11:$D$14) -> 0.04043126685 | H12: 9 | I12: 36.5 | J12: 0
B13: EM(OWM) | D13: ='2021 Data By Pay Band'!J87 -> 51 | F13: =D13/SUM($D$11:$D$14) -> 0.1374663073 | H13: 10 | I13: 40.5 | J13: 0
B14: NR | D14: ='2021 Data By Pay Band'!J88 -> 5 | F14: =D14/SUM($D$11:$D$14) -> 0.01347708895 | H14: 11 | I14: 44.5 | J14: 0
A15: Band 5 | B15: WB | C15: ='2021 Data By Pay Band'!K85 -> 821 | E15: =C15/SUM($C$15:$C$18) -> 0.6122296793 | H15: 12 | I15: 48.5 | J15: 0
B16: WO | C16: ='2021 Data By Pay Band'!K86 -> 99 | E16: =C16/SUM($C$15:$C$18) -> 0.07382550336
B17: EM(OWM) | C17: ='2021 Data By Pay Band'!K87 -> 389 | E17: =C17/SUM($C$15:$C$18) -> 0.2900820283
B18: NR | C18: ='2021 Data By Pay Band'!K88 -> 32 | E18: =C18/SUM($C$15:$C$18) -> 0.02386278896
A19: Band 6 | B19: WB | D19: ='2021 Data By Pay Band'!L85 -> 808 | F19: =D19/SUM($D$19:$D$22) -> 0.8015873016
B20: WO | D20: ='2021 Data By Pay Band'!L86 -> 76 | F20: =D20/SUM($D$19:$D$22) -> 0.0753968254
B21: EM(OWM) | D21: ='2021 Data By Pay Band'!L87 -> 106 | F21: =D21/SUM($D$19:$D$22) -> 0.1051587302
B22: NR | D22: ='2021 Data By Pay Band'!L88 -> 18 | F22: =D22/SUM($D$19:$D$22) -> 0.01785714286
A23: Band 7 | B23: WB | C23: ='2021 Data By Pay Band'!M85 -> 494 | E23: =C23/SUM($C$23:$C$26) -> 0.843003413
B24: WO | C24: ='2021 Data By Pay Band'!M86 -> 39 | E24: =C24/SUM($C$23:$C$26) -> 0.06655290102
B25: EM(OWM) | C25: ='2021 Data By Pay Band'!M87 -> 43 | E25: =C25/SUM($C$23:$C$26) -> 0.07337883959
B26: NR | C26: ='2021 Data By Pay Band'!M88 -> 10 | E26: =C26/SUM($C$23:$C$26) -> 0.01706484642
A27: Band 8A/B | B27: WB | D27: ='2021 Data By Pay Band'!N85 -> 212 | F27: =D27/SUM($D$27:$D$30) -> 0.9021276596
B28: WO | D28: ='2021 Data By Pay Band'!N86 -> 14 | F28: =D28/SUM($D$27:$D$30) -> 0.05957446809
B29: EM(OWM) | D29: ='2021 Data By Pay Band'!N87 -> 5 | F29: =D29/SUM($D$27:$D$30) -> 0.02127659574
B30: NR | D30: ='2021 Data By Pay Band'!N88 -> 4 | F30: =D30/SUM($D$27:$D$30) -> 0.0170212766
A31: Band *c -9 | B31: WB | C31: ='2021 Data By Pay Band'!O85 -> 37 | E31: =C31/SUM($C$31:$C$34) -> 0.8604651163
B32: WO | C32: ='2021 Data By Pay Band'!O86 -> 1 | E32: =C32/SUM($C$31:$C$34) -> 0.02325581395
B33: EM(OWM) | C33: ='2021 Data By Pay Band'!O87 -> 4 | E33: =C33/SUM($C$31:$C$34) -> 0.09302325581
B34: NR | C34: ='2021 Data By Pay Band'!O88 -> 1 | E34: =C34/SUM($C$31:$C$34) -> 0.02325581395
A35: Trainee Grade Doctor | B35: WB | D35: ='2021 Data By Pay Band'!P85 -> 364 | F35: =D35/SUM($D$35:$D$38) -> 0.7151277014
B36: WO | D36: ='2021 Data By Pay Band'!P86 -> 40 | F36: =D36/SUM($D$35:$D$38) -> 0.07858546169
B37: EM(OWM) | D37: ='2021 Data By Pay Band'!P87 -> 81 | F37: =D37/SUM($D$35:$D$38) -> 0.1591355599
B38: NR | D38: ='2021 Data By Pay Band'!P88 -> 24 | F38: =D38/SUM($D$35:$D$38) -> 0.04715127701
A39: Career Grade Doctor | B39: WB | C39: ='2021 Data By Pay Band'!Q85 -> 31 | E39: =C39/SUM($C$39:$C$42) -> 0.5961538462
B40: WO | C40: ='2021 Data By Pay Band'!Q86 -> 6 | E40: =C40/SUM($C$39:$C$42) -> 0.1153846154
B41: EM(OWM) | C41: ='2021 Data By Pay Band'!Q87 -> 15 | E41: =C41/SUM($C$39:$C$42) -> 0.2884615385
B42: NR | C42: ='2021 Data By Pay Band'!Q88 -> 0 | E42: =C42/SUM($C$39:$C$42) -> 0
A43: Consultant | B43: WB | D43: ='2021 Data By Pay Band'!R85 -> 241 | F43: =D43/SUM($D$43:$D$46) -> 0.7749196141
B44: WO | D44: ='2021 Data By Pay Band'!R86 -> 17 | F44: =D44/SUM($D$27:$D$30) -> 0.07234042553
B45: EM(OWM) | D45: ='2021 Data By Pay Band'!R87 -> 49 | F45: =D45/SUM($D$27:$D$30) -> 0.2085106383
B46: NR | D46: ='2021 Data By Pay Band'!R88 -> 4 | F46: =D46/SUM($D$27:$D$30) -> 0.0170212766
A47: Other | B47: WB | C47: ='2021 Data By Pay Band'!S85 -> 46 | E47: =C47/SUM($C$47:$C$50) -> 0.7666666667
B48: WO | C48: ='2021 Data By Pay Band'!S86 -> 6 | E48: =C48/SUM($C$47:$C$50) -> 0.1
B49: EM(OWM) | C49: ='2021 Data By Pay Band'!S87 -> 4 | E49: =C49/SUM($C$47:$C$50) -> 0.06666666667
B50: NR | C50: ='2021 Data By Pay Band'!S88 -> 4 | E50: =C50/SUM($C$47:$C$50) -> 0.06666666667

Sheet G Graph Data (hidden)
B2: Gender | C2: Value | E2: Percentage | H2: Dividers | I2: 2
A3: Band 1/2 | B3: F | D3: ='2021 Data By Pay Band'!H113 -> 1432 | F3: =D3/SUM($D$3:$D$4) -> 0.7043777668 | I3: X | J3: Y
B4: M | D4: ='2021 Data By Pay Band'!H114 -> 601 | F4: =D4/SUM($D$3:$D$4) -> 0.2956222332 | H4: 1 | I4: =$I$2*H4+0.5 -> 2.5 | J4: 0
A5: Band 3 | B5: F | C5: ='2021 Data By Pay Band'!I113 -> 591 | E5: =C5/SUM($C$5:$C$6) -> 0.8208333333 | H5: 2 | I5: =$I$2*H5+0.5 -> 4.5 | J5: 0
B6: M | C6: ='2021 Data By Pay Band'!I114 -> 129 | E6: =C6/SUM($C$5:$C$6) -> 0.1791666667 | H6: 3 | I6: =$I$2*H6+0.5 -> 6.5 | J6: 0
A7: Band 4 | B7: F | D7: ='2021 Data By Pay Band'!J113 -> 305 | F7: =D7/SUM($D$7:$D$8) -> 0.8221024259 | H7: 4 | I7: 8.5 | J7: 0
B8: M | D8: ='2021 Data By Pay Band'!J114 -> 66 | F8: =D8/SUM($D$7:$D$8) -> 0.1778975741 | H8: 5 | I8: 10.5 | J8: 0
A9: Band 5 | B9: F | C9: ='2021 Data By Pay Band'!K113 -> 1126 | E9: =C9/SUM($C$9:$C$10) -> 0.8396718867 | H9: 6 | I9: 12.5 | J9: 0
B10: M | C10: ='2021 Data By Pay Band'!K114 -> 215 | E10: =C10/SUM($C$9:$C$10) -> 0.1603281133 | H10: 7 | I10: 14.5 | J10: 0
A11: Band 6 | B11: F | D11: ='2021 Data By Pay Band'!L113 -> 866 | F11: =D11/SUM($D$11:$D$12) -> 0.8591269841 | H11: 8 | I11: 16.5 | J11: 0
B12: M | D12: ='2021 Data By Pay Band'!L114 -> 142 | F12: =D12/SUM($D$11:$D$12) -> 0.1408730159 | H12: 9 | I12: 18.5 | J12: 0
A13: Band 7 | B13: F | C13: ='2021 Data By Pay Band'!M113 -> 478 | E13: =C13/SUM($C$13:$C$14) -> 0.8156996587 | H13: 10 | I13: 20.5 | J13: 0
B14: M | C14: ='2021 Data By Pay Band'!M114 -> 108 | E14: =C14/SUM($C$13:$C$14) -> 0.1843003413 | H14: 11 | I14: 22.5 | J14: 0
A15: Band 8A/B | B15: F | D15: ='2021 Data By Pay Band'!N113 -> 183 | F15: =D15/SUM($D$15:$D$16) -> 0.7787234043 | H15: 12 | I15: 24.5 | J15: 0
B16: M | D16: ='2021 Data By Pay Band'!N114 -> 52 | F16: =D16/SUM($D$15:$D$16) -> 0.2212765957
A17: Band 8C-9 | B17: F | C17: ='2021 Data By Pay Band'!O113 -> 22 | E17: =C17/SUM($C$17:$C$18) -> 0.511627907
B18: M | C18: ='2021 Data By Pay Band'!O114 -> 21 | E18: =C18/SUM($C$17:$C$18) -> 0.488372093
A19: Trainee Grade Doctor | B19: F | D19: ='2021 Data By Pay Band'!P113 -> 286 | F19: =D19/SUM($D$19:$D$20) -> 0.5618860511
B20: M | D20: ='2021 Data By Pay Band'!P114 -> 223 | F20: =D20/SUM($D$19:$D$20) -> 0.4381139489
A21: Career Grade Doctor | B21: F | C21: ='2021 Data By Pay Band'!Q113 -> 31 | E21: =C21/SUM($C$21:$C$22) -> 0.5961538462
B22: M | C22: ='2021 Data By Pay Band'!Q114 -> 21 | E22: =C22/SUM($C$21:$C$22) -> 0.4038461538
A23: Consultant | B23: F | D23: ='2021 Data By Pay Band'!R113 -> 126 | F23: =D23/SUM($D$23:$D$24) -> 0.4051446945
B24: M | D24: ='2021 Data By Pay Band'!R114 -> 185 | F24: =D24/SUM($D$15:$D$16) -> 0.7872340426
A25: Other | B25: F | C25: ='2021 Data By Pay Band'!S113 -> 40 | E25: =C25/SUM($C$25:$C$26) -> 0.6666666667
B26: M | C26: ='2021 Data By Pay Band'!S114 -> 20 | E26: =C26/SUM($C$25:$C$26) -> 0.3333333333

Sheet RB Graph Data (hidden)
B2: Religious Belief | C2: Value | E2: Percentage | H2: Dividers | I2: 10
A3: Band 1/2 | B3: A | D3: ='2021 Data By Pay Band'!H172 -> 378 | F3: =D3/SUM($D$3:$D$12) -> 0.18593212 | I3: X | J3: Y
B4: B | D4: ='2021 Data By Pay Band'!H173 -> 17 | F4: 0.008362026562 | H4: 1 | I4: =$I$2*H4+0.5 -> 10.5 | J4: 0
B5: C | D5: ='2021 Data By Pay Band'!H174 -> 919 | F5: 0.4520413182 | H5: 2 | I5: =$I$2*H5+0.5 -> 20.5 | J5: 0
B6: H | D6: ='2021 Data By Pay Band'!H175 -> 10 | F6: 0.004918839154 | H6: 3 | I6: =$I$2*H6+0.5 -> 30.5 | J6: 0
B7: I | D7: ='2021 Data By Pay Band'!H176 -> 23 | F7: 0.01131333005 | H7: 4 | I7: 40.5 | J7: 0
B8: J | D8: ='2021 Data By Pay Band'!H177 -> 2 | F8: 0.0009837678308 | H8: 5 | I8: 50.5 | J8: 0
B9: S | D9: ='2021 Data By Pay Band'!H178 -> 2 | F9: 0.0009837678308 | H9: 6 | I9: 60.5 | J9: 0
B10: O | D10: ='2021 Data By Pay Band'!H179 -> 201 | F10: 0.09886866699 | H10: 7 | I10: 70.5 | J10: 0
B11: ND | D11: ='2021 Data By Pay Band'!H180 -> 297 | F11: 0.1460895229 | H11: 8 | I11: 80.5 | J11: 0
B12: NR | D12: ='2021 Data By Pay Band'!H181 -> 184 | F12: 0.09050664043 | H12: 9 | I12: 90.5 | J12: 0
A13: Band 3 | B13: A | C13: ='2021 Data By Pay Band'!I172 -> 124 | E13: =C13/SUM($C$13:$C$22) -> 0.1722222222 | H13: 10 | I13: 100.5 | J13: 0
B14: B | C14: ='2021 Data By Pay Band'!I173 -> 2 | E14: =C14/SUM($C$13:$C$22) -> 0.002777777778 | H14: 11 | I14: 110.5 | J14: 0
B15: C | C15: ='2021 Data By Pay Band'!I174 -> 335 | E15: 0.4652777778 | H15: 12 | I15: 120.5 | J15: 0
B16: H | C16: ='2021 Data By Pay Band'!I175 -> 1 | E16: 0.001388888889
B17: I | C17: ='2021 Data By Pay Band'!I176 -> 4 | E17: 0.005555555556
B18: J | C18: ='2021 Data By Pay Band'!I177 -> 1 | E18: 0.001388888889
B19: S | C19: ='2021 Data By Pay Band'!I178 -> 0 | E19: 0
B20: O | C20: ='2021 Data By Pay Band'!I179 -> 90 | E20: 0.125
B21: ND | C21: ='2021 Data By Pay Band'!I180 -> 102 | E21: 0.1416666667
B22: NR | C22: ='2021 Data By Pay Band'!I181 -> 61 | E22: 0.08472222222
A23: Band 4 | B23: A | D23: ='2021 Data By Pay Band'!J172 -> 85 | F23: =D23/SUM($D$23:$D$32) -> 0.2291105121
B24: B | D24: ='2021 Data By Pay Band'!J173 -> 0 | F24: 0
B25: C | D25: ='2021 Data By Pay Band'!J174 -> 153 | F25: 0.4123989218
B26: H | D26: ='2021 Data By Pay Band'!J175 -> 1 | F26: 0.00269541779
B27: I | D27: ='2021 Data By Pay Band'!J176 -> 3 | F27: 0.008086253369
B28: J | D28: ='2021 Data By Pay Band'!J177 -> 0 | F28: 0
B29: S | D29: ='2021 Data By Pay Band'!J178 -> 0 | F29: 0
B30: O | D30: ='2021 Data By Pay Band'!J179 -> 40 | F30: 0.1078167116
B31: ND | D31: ='2021 Data By Pay Band'!J180 -> 53 | F31: 0.1428571429
B32: NR | D32: ='2021 Data By Pay Band'!J181 -> 36 | F32: 0.09703504043
A33: Band 5 | B33: A | C33: ='2021 Data By Pay Band'!K172 -> 258 | E33: =C33/SUM($C$33:$C$42) -> 0.192393736
B34: B | C34: ='2021 Data By Pay Band'!K173 -> 7 | E34: =C34/SUM($C$33:$C$42) -> 0.005219985086
B35: C | C35: ='2021 Data By Pay Band'!K174 -> 684 | E35: 0.5100671141
B36: H | C36: ='2021 Data By Pay Band'!K175 -> 12 | E36: 0.008948545861
B37: I | C37: ='2021 Data By Pay Band'!K176 -> 12 | E37: 0.008948545861
B38: J | C38: ='2021 Data By Pay Band'!K177 -> 0 | E38: 0
B39: S | C39: ='2021 Data By Pay Band'!K178 -> 1 | E39: 0.0007457121551
B40: O | C40: ='2021 Data By Pay Band'!K179 -> 95 | E40: 0.07084265474
B41: ND | C41: ='2021 Data By Pay Band'!K180 -> 166 | E41: 0.1237882177
B42: NR | C42: ='2021 Data By Pay Band'!K181 -> 106 | E42: 0.07904548844
A43: Band 6 | B43: A | D43: ='2021 Data By Pay Band'!L172 -> 201 | F43: =D43/SUM($D$43:$D$52) -> 0.1994047619
B44: B | D44: ='2021 Data By Pay Band'!L173 -> 6 | F44: 0.005952380952
B45: C | D45: ='2021 Data By Pay Band'!L174 -> 477 | F45: 0.4732142857
B46: H | D46: ='2021 Data By Pay Band'!L175 -> 6 | F46: 0.005952380952
B47: I | D47: ='2021 Data By Pay Band'!L176 -> 6 | F47: 0.005952380952
B48: J | D48: ='2021 Data By Pay Band'!L177 -> 1 | F48: 0.0009920634921
B49: S | D49: ='2021 Data By Pay Band'!L178 -> 1 | F49: 0.0009920634921
B50: O | D50: ='2021 Data By Pay Band'!L179 -> 77 | F50: 0.07638888889
B51: ND | D51: ='2021 Data By Pay Band'!L180 -> 151 | F51: 0.1498015873
B52: NR | D52: ='2021 Data By Pay Band'!L181 -> 82 | F52: 0.08134920635
A53: Band 7 | B53: A | C53: ='2021 Data By Pay Band'!M172 -> 103 | E53: =C53/SUM($C$53:$C$62) -> 0.1757679181
B54: B | C54: ='2021 Data By Pay Band'!M173 -> 1 | E54: =C54/SUM($C$53:$C$62) -> 0.001706484642
B55: C | C55: ='2021 Data By Pay Band'!M174 -> 246 | E55: 0.4197952218
B56: H | C56: ='2021 Data By Pay Band'!M175 -> 7 | E56: 0.01194539249
B57: I | C57: ='2021 Data By Pay Band'!M176 -> 2 | E57: 0.003412969283
B58: J | C58: ='2021 Data By Pay Band'!M177 -> 1 | E58: 0.001706484642
B59: S | C59: ='2021 Data By Pay Band'!M178 -> 1 | E59: 0.001706484642
B60: O | C60: ='2021 Data By Pay Band'!M179 -> 44 | E60: 0.07508532423
B61: ND | C61: ='2021 Data By Pay Band'!M180 -> 103 | E61: 0.1757679181
B62: NR | C62: ='2021 Data By Pay Band'!M181 -> 78 | E62: 0.133105802
A63: Band 8A/B | B63: A | D63: ='2021 Data By Pay Band'!N172 -> 43 | F63: =D63/SUM($D$63:$D$72) -> 0.1829787234
B64: B | D64: ='2021 Data By Pay Band'!N173 -> 0 | F64: 0
B65: C | D65: ='2021 Data By Pay Band'!N174 -> 99 | F65: 0.4212765957
B66: H | D66: ='2021 Data By Pay Band'!N175 -> 1 | F66: 0.004255319149
B67: I | D67: ='2021 Data By Pay Band'!N176 -> 0 | F67: 0
B68: J | D68: ='2021 Data By Pay Band'!N177 -> 0 | F68: 0
B69: S | D69: ='2021 Data By Pay Band'!N178 -> 1 | F69: 0.004255319149
B70: O | D70: ='2021 Data By Pay Band'!N179 -> 21 | F70: 0.08936170213
B71: ND | D71: ='2021 Data By Pay Band'!N180 -> 40 | F71: 0.170212766
B72: NR | D72: ='2021 Data By Pay Band'!N181 -> 30 | F72: 0.1276595745
A73: Band 8C-9 | B73: A | C73: ='2021 Data By Pay Band'!O172 -> 8 | E73: =C73/SUM($C$73:$C$82) -> 0.1860465116
B74: B | C74: ='2021 Data By Pay Band'!O173 -> 0 | E74: =C74/SUM($C$73:$C$82) -> 0
B75: C | C75: ='2021 Data By Pay Band'!O174 -> 19 | E75: 0.4418604651
B76: H | C76: ='2021 Data By Pay Band'!O175 -> 1 | E76: 0.02325581395
B77: I | C77: ='2021 Data By Pay Band'!O176 -> 1 | E77: 0.02325581395
B78: J | C78: ='2021 Data By Pay Band'!O177 -> 0 | E78: 0
B79: S | C79: ='2021 Data By Pay Band'!O178 -> 0 | E79: 0
B80: O | C80: ='2021 Data By Pay Band'!O179 -> 1 | E80: 0.02325581395
B81: ND | C81: ='2021 Data By Pay Band'!O180 -> 8 | E81: 0.1860465116
B82: NR | C82: ='2021 Data By Pay Band'!O181 -> 5 | E82: 0.1162790698
A83: Trainee Grade Doctor | B83: A | D83: ='2021 Data By Pay Band'!P172 -> 191 | F83: =D83/SUM($D$83:$D$92) -> 0.3752455796
B84: B | D84: ='2021 Data By Pay Band'!P173 -> 6 | F84: =D84/SUM($D$83:$D$92) -> 0.01178781925
B85: C | D85: ='2021 Data By Pay Band'!P174 -> 152 | F85: 0.2986247544
B86: H | D86: ='2021 Data By Pay Band'!P175 -> 12 | F86: 0.02357563851
B87: I | D87: ='2021 Data By Pay Band'!P176 -> 15 | F87: 0.02946954813
B88: J | D88: ='2021 Data By Pay Band'!P177 -> 1 | F88: 0.001964636542
B89: S | D89: ='2021 Data By Pay Band'!P178 -> 2 | F89: 0.003929273084
B90: O | D90: ='2021 Data By Pay Band'!P179 -> 25 | F90: 0.04911591356
B91: ND | D91: ='2021 Data By Pay Band'!P180 -> 97 | F91: 0.1905697446
B92: NR | D92: ='2021 Data By Pay Band'!P181 -> 8 | F92: 0.01571709234
A93: Career Grade Doctor | B93: A | C93: ='2021 Data By Pay Band'!Q172 -> 2 | E93: =C93/SUM($C$93:$C$102) -> 0.03846153846
B94: B | C94: ='2021 Data By Pay Band'!Q173 -> 0 | E94: =C94/SUM($C$93:$C$102) -> 0
B95: C | C95: ='2021 Data By Pay Band'!Q174 -> 11 | E95: 0.2115384615
B96: H | C96: ='2021 Data By Pay Band'!Q175 -> 2 | E96: 0.03846153846
B97: I | C97: ='2021 Data By Pay Band'!Q176 -> 2 | E97: 0.03846153846
B98: J | C98: ='2021 Data By Pay Band'!Q177 -> 0 | E98: 0
B99: S | C99: ='2021 Data By Pay Band'!Q178 -> 0 | E99: 0
B100: O | C100: ='2021 Data By Pay Band'!Q179 -> 2 | E100: 0.03846153846
B101: ND | C101: ='2021 Data By Pay Band'!Q180 -> 6 | E101: 0.1153846154
B102: NR | C102: ='2021 Data By Pay Band'!Q181 -> 27 | E102: 0.5192307692
A103: Consultant | B103: A | D103: ='2021 Data By Pay Band'!R172 -> 57 | F103: =D103/SUM($D$103:$D$112) -> 0.1832797428
B104: B | D104: ='2021 Data By Pay Band'!R173 -> 2 | F104: =D104/SUM($D$63:$D$72) -> 0.008510638298
B105: C | D105: ='2021 Data By Pay Band'!R174 -> 107 | F105: 0.4553191489
B106: H | D106: ='2021 Data By Pay Band'!R175 -> 7 | F106: 0.02978723404
B107: I | D107: ='2021 Data By Pay Band'!R176 -> 8 | F107: 0.03404255319
B108: J | D108: ='2021 Data By Pay Band'!R177 -> 2 | F108: 0.008510638298
B109: S | D109: ='2021 Data By Pay Band'!R178 -> 2 | F109: 0.008510638298
B110: O | D110: ='2021 Data By Pay Band'!R179 -> 13 | F110: 0.05531914894
B111: ND | D111: ='2021 Data By Pay Band'!R180 -> 47 | F111: 0.2
B112: NR | D112: ='2021 Data By Pay Band'!R181 -> 66 | F112: 0.2808510638
A113: Other | B113: A | C113: ='2021 Data By Pay Band'!S172 -> 12 | E113: =C113/SUM($C$113:$C$122) -> 0.2
B114: B | C114: ='2021 Data By Pay Band'!S173 -> 1 | E114: =C114/SUM($C$113:$C$122) -> 0.01666666667
B115: C | C115: ='2021 Data By Pay Band'!S174 -> 22 | E115: 0.3666666667
B116: H | C116: ='2021 Data By Pay Band'!S175 -> 1 | E116: 0.01666666667
B117: I | C117: ='2021 Data By Pay Band'!S176 -> 0 | E117: 0
B118: J | C118: ='2021 Data By Pay Band'!S177 -> 0 | E118: 0
B119: S | C119: ='2021 Data By Pay Band'!S178 -> 0 | E119: 0
B120: O | C120: ='2021 Data By Pay Band'!S179 -> 5 | E120: 0.08333333333
B121: ND | C121: ='2021 Data By Pay Band'!S180 -> 9 | E121: 0.15
B122: NR | C122: ='2021 Data By Pay Band'!S181 -> 10 | E122: 0.1666666667

Sheet RS Graph Data (hidden)
B2: Relationship Status | C2: Value | E2: Percentage | H2: Dividers | I2: 7
A3: Band 1/2 | B3: S | D3: ='2021 Data By Pay Band'!H141 -> 975 | F3: =D3/SUM($D$3:$D$9) -> 0.4795868175 | I3: X | J3: Y
B4: M | D4: ='2021 Data By Pay Band'!H142 -> 776 | F4: 0.3817019183 | H4: 1 | I4: =$I$2*H4+0.5 -> 7.5 | J4: 0
B5: C | D5: ='2021 Data By Pay Band'!H143 -> 37 | F5: 0.01819970487 | H5: 2 | I5: =$I$2*H5+0.5 -> 14.5 | J5: 0
B6: D | D6: ='2021 Data By Pay Band'!H144 -> 125 | F6: 0.06148548942 | H6: 3 | I6: =$I$2*H6+0.5 -> 21.5 | J6: 0
B7: LS | D7: ='2021 Data By Pay Band'!H145 -> 17 | F7: 0.008362026562 | H7: 4 | I7: 28.5 | J7: 0
B8: W | D8: ='2021 Data By Pay Band'!H146 -> 18 | F8: 0.008853910477 | H8: 5 | I8: 35.5 | J8: 0
B9: NR | D9: ='2021 Data By Pay Band'!H147 -> 85 | F9: 0.04181013281 | H9: 6 | I9: 42.5 | J9: 0
A10: Band 3 | B10: S | C10: ='2021 Data By Pay Band'!I141 -> 241 | E10: =C10/SUM($C$10:$C$16) -> 0.3347222222 | H10: 7 | I10: 49.5 | J10: 0
B11: M | C11: ='2021 Data By Pay Band'!I142 -> 353 | E11: 0.4902777778 | H11: 8 | I11: 56.5 | J11: 0
B12: C | C12: ='2021 Data By Pay Band'!I143 -> 15 | E12: 0.02083333333 | H12: 9 | I12: 63.5 | J12: 0
B13: D | C13: ='2021 Data By Pay Band'!I144 -> 67 | E13: 0.09305555556 | H13: 10 | I13: 70.5 | J13: 0
B14: LS | C14: ='2021 Data By Pay Band'!I145 -> 11 | E14: 0.01527777778 | H14: 11 | I14: 77.5 | J14: 0
B15: W | C15: ='2021 Data By Pay Band'!I146 -> 5 | E15: 0.006944444444 | H15: 12 | I15: 84.5 | J15: 0
B16: NR | C16: ='2021 Data By Pay Band'!I147 -> 28 | E16: 0.03888888889
A17: Band 4 | B17: S | D17: ='2021 Data By Pay Band'!J141 -> 156 | F17: =D17/SUM($D$17:$D$23) -> 0.4204851752
B18: M | D18: ='2021 Data By Pay Band'!J142 -> 168 | F18: 0.4528301887
B19: C | D19: ='2021 Data By Pay Band'!J143 -> 6 | F19: 0.01617250674
B20: D | D20: ='2021 Data By Pay Band'!J144 -> 21 | F20: 0.05660377358
B21: LS | D21: ='2021 Data By Pay Band'!J145 -> 3 | F21: 0.008086253369
B22: W | D22: ='2021 Data By Pay Band'!J146 -> 1 | F22: 0.00269541779
B23: NR | D23: ='2021 Data By Pay Band'!J147 -> 16 | F23: 0.04312668464
A24: Band 5 | B24: S | C24: ='2021 Data By Pay Band'!K141 -> 634 | E24: =C24/SUM($C$24:$C$30) -> 0.4727815063
B25: M | C25: ='2021 Data By Pay Band'!K142 -> 578 | E25: 0.4310216257
B26: C | C26: ='2021 Data By Pay Band'!K143 -> 12 | E26: 0.008948545861
B27: D | C27: ='2021 Data By Pay Band'!K144 -> 55 | E27: 0.04101416853
B28: LS | C28: ='2021 Data By Pay Band'!K145 -> 5 | E28: 0.003728560776
B29: W | C29: ='2021 Data By Pay Band'!K146 -> 8 | E29: 0.005965697241
B30: NR | C30: ='2021 Data By Pay Band'!K147 -> 49 | E30: 0.0365398956
A31: Band 6 | B31: S | D31: ='2021 Data By Pay Band'!L141 -> 379 | F31: =D31/SUM($D$31:$D$37) -> 0.3759920635
B32: M | D32: ='2021 Data By Pay Band'!L142 -> 533 | F32: 0.5287698413
B33: C | D33: ='2021 Data By Pay Band'!L143 -> 8 | F33: 0.007936507937
B34: D | D34: ='2021 Data By Pay Band'!L144 -> 39 | F34: 0.03869047619
B35: LS | D35: ='2021 Data By Pay Band'!L145 -> 4 | F35: 0.003968253968
B36: W | D36: ='2021 Data By Pay Band'!L146 -> 5 | F36: 0.00496031746
B37: NR | D37: ='2021 Data By Pay Band'!L147 -> 40 | F37: 0.03968253968
A38: Band 7 | B38: S | C38: ='2021 Data By Pay Band'!M141 -> 170 | E38: =C38/SUM($C$38:$C$44) -> 0.2901023891
B39: M | C39: ='2021 Data By Pay Band'!M142 -> 346 | E39: 0.590443686
B40: C | C40: ='2021 Data By Pay Band'!M143 -> 9 | E40: 0.01535836177
B41: D | C41: ='2021 Data By Pay Band'!M144 -> 30 | E41: 0.05119453925
B42: LS | C42: ='2021 Data By Pay Band'!M145 -> 5 | E42: 0.008532423208
B43: W | C43: ='2021 Data By Pay Band'!M146 -> 3 | E43: 0.005119453925
B44: NR | C44: ='2021 Data By Pay Band'!M147 -> 23 | E44: 0.03924914676
A45: Band 8A/B | B45: S | D45: ='2021 Data By Pay Band'!N141 -> 62 | F45: =D45/SUM($D$45:$D$51) -> 0.2638297872
B46: M | D46: ='2021 Data By Pay Band'!N142 -> 149 | F46: 0.6340425532
B47: C | D47: ='2021 Data By Pay Band'!N143 -> 0 | F47: 0
B48: D | D48: ='2021 Data By Pay Band'!N144 -> 19 | F48: 0.08085106383
B49: LS | D49: ='2021 Data By Pay Band'!N145 -> 1 | F49: 0.004255319149
B50: W | D50: ='2021 Data By Pay Band'!N146 -> 0 | F50: 0
B51: NR | D51: ='2021 Data By Pay Band'!N147 -> 4 | F51: 0.0170212766
A52: Band 8C-9 | B52: S | C52: ='2021 Data By Pay Band'!O141 -> 9 | E52: =C52/SUM($C$52:$C$58) -> 0.2093023256
B53: M | C53: ='2021 Data By Pay Band'!O142 -> 28 | E53: 0.6511627907
B54: C | C54: ='2021 Data By Pay Band'!O143 -> 0 | E54: 0
B55: D | C55: ='2021 Data By Pay Band'!O144 -> 5 | E55: 0.1162790698
B56: LS | C56: ='2021 Data By Pay Band'!O145 -> 0 | E56: 0
B57: W | C57: ='2021 Data By Pay Band'!O146 -> 0 | E57: 0
B58: NR | C58: ='2021 Data By Pay Band'!O147 -> 1 | E58: 0.02325581395
A59: Trainee Grade Doctor | B59: S | D59: ='2021 Data By Pay Band'!P141 -> 322 | F59: =D59/SUM($D$59:$D$65) -> 0.6326129666
B60: M | D60: ='2021 Data By Pay Band'!P142 -> 151 | F60: 0.2966601179
B61: C | D61: ='2021 Data By Pay Band'!P143 -> 4 | F61: 0.007858546169
B62: D | D62: ='2021 Data By Pay Band'!P144 -> 2 | F62: 0.003929273084
B63: LS | D63: ='2021 Data By Pay Band'!P145 -> 0 | F63: 0
B64: W | D64: ='2021 Data By Pay Band'!P146 -> 0 | F64: 0
B65: NR | D65: ='2021 Data By Pay Band'!P147 -> 30 | F65: 0.05893909627
A66: Career Grade Doctor | B66: S | C66: ='2021 Data By Pay Band'!Q141 -> 10 | E66: =C66/SUM($C$66:$C$72) -> 0.1923076923
B67: M | C67: ='2021 Data By Pay Band'!Q142 -> 38 | E67: 0.7307692308
B68: C | C68: ='2021 Data By Pay Band'!Q143 -> 0 | E68: 0
B69: D | C69: ='2021 Data By Pay Band'!Q144 -> 1 | E69: 0.01923076923
B70: LS | C70: ='2021 Data By Pay Band'!Q145 -> 1 | E70: 0.01923076923
B71: W | C71: ='2021 Data By Pay Band'!Q146 -> 0 | E71: 0
B72: NR | C72: ='2021 Data By Pay Band'!Q147 -> 2 | E72: 0.03846153846
A73: Consultant | B73: S | D73: ='2021 Data By Pay Band'!R141 -> 50 | F73: =D73/SUM($D$73:$D$79) -> 0.1607717042
B74: M | D74: ='2021 Data By Pay Band'!R142 -> 243 | F74: =D74/SUM($D$45:$D$51) -> 1.034042553
B75: C | D75: ='2021 Data By Pay Band'!R143 -> 2 | F75: 0.008510638298
B76: D | D76: ='2021 Data By Pay Band'!R144 -> 6 | F76: 0.02553191489
B77: LS | D77: ='2021 Data By Pay Band'!R145 -> 0 | F77: 0
B78: W | D78: ='2021 Data By Pay Band'!R146 -> 2 | F78: 0.008510638298
B79: NR | D79: ='2021 Data By Pay Band'!R147 -> 8 | F79: 0.03404255319
A80: Other | B80: S | C80: ='2021 Data By Pay Band'!S141 -> 14 | E80: =C80/SUM($C$80:$C$86) -> 0.2333333333
B81: M | C81: ='2021 Data By Pay Band'!S142 -> 30 | E81: =C81/SUM($C$80:$C$86) -> 0.5
B82: C | C82: ='2021 Data By Pay Band'!S143 -> 1 | E82: 0.01666666667
B83: D | C83: ='2021 Data By Pay Band'!S144 -> 3 | E83: 0.05
B84: LS | C84: ='2021 Data By Pay Band'!S145 -> 1 | E84: 0.01666666667
B85: W | C85: ='2021 Data By Pay Band'!S146 -> 2 | E85: 0.03333333333
B86: NR | C86: ='2021 Data By Pay Band'!S147 -> 9 | E86: 0.15

Sheet SO Graph Data (hidden)
B2: Disability | C2: Value | E2: Percentage | H2: Dividers | I2: 4
A3: Band 1/2 | B3: H | D3: ='2021 Data By Pay Band'!H206 -> 1606 | F3: =D3/SUM($D$3:$D$6) -> 0.9588059701 | I3: X | J3: Y
B4: LGB | D4: ='2021 Data By Pay Band'!H207 -> 58 | F4: =D4/SUM($D$3:$D$6) -> 0.03462686567 | H4: 1 | I4: =$I$2*H4+0.5 -> 4.5 | J4: 0
B5: ND | D5: ='2021 Data By Pay Band'!H208 -> 2 | F5: =D5/SUM($D$3:$D$6) -> 0.001194029851 | H5: 2 | I5: =$I$2*H5+0.5 -> 8.5 | J5: 0
B6: NR | D6: ='2021 Data By Pay Band'!H209 -> 9 | F6: =D6/SUM($D$3:$D$6) -> 0.005373134328 | H6: 3 | I6: =$I$2*H6+0.5 -> 12.5 | J6: 0
A7: Band 3 | B7: H | C7: ='2021 Data By Pay Band'!H206 -> 1606 | E7: =C7/SUM($C$7:$C$10) -> 0.987699877 | H7: 4 | I7: 16.5 | J7: 0
B8: LGB | C8: ='2021 Data By Pay Band'!I207 -> 20 | E8: =C8/SUM($C$7:$C$10) -> 0.012300123 | H8: 5 | I8: 20.5 | J8: 0
B9: ND | C9: ='2021 Data By Pay Band'!I208 -> 0 | E9: =C9/SUM($C$7:$C$10) -> 0 | H9: 6 | I9: 24.5 | J9: 0
B10: NR | C10: ='2021 Data By Pay Band'!I209 -> 0 | E10: =C10/SUM($C$7:$C$10) -> 0 | H10: 7 | I10: 28.5 | J10: 0
A11: Band 4 | B11: H | D11: ='2021 Data By Pay Band'!I206 -> 580 | F11: =D11/SUM($D$11:$D$14) -> 0.9780775717 | H11: 8 | I11: 32.5 | J11: 0
B12: LGB | D12: ='2021 Data By Pay Band'!J207 -> 13 | F12: =D12/SUM($D$11:$D$14) -> 0.02192242833 | H12: 9 | I12: 36.5 | J12: 0
B13: ND | D13: ='2021 Data By Pay Band'!J208 -> 0 | F13: =D13/SUM($D$11:$D$14) -> 0 | H13: 10 | I13: 40.5 | J13: 0
B14: NR | D14: ='2021 Data By Pay Band'!J209 -> 0 | F14: =D14/SUM($D$11:$D$14) -> 0 | H14: 11 | I14: 44.5 | J14: 0
A15: Band 5 | B15: H | C15: ='2021 Data By Pay Band'!J206 -> 297 | E15: =C15/SUM($C$15:$C$18) -> 0.8786982249 | H15: 12 | I15: 48.5 | J15: 0
B16: LGB | C16: ='2021 Data By Pay Band'!K207 -> 39 | E16: =C16/SUM($C$15:$C$18) -> 0.1153846154
B17: ND | C17: ='2021 Data By Pay Band'!K208 -> 0 | E17: =C17/SUM($C$15:$C$18) -> 0
B18: NR | C18: ='2021 Data By Pay Band'!K209 -> 2 | E18: =C18/SUM($C$15:$C$18) -> 0.005917159763
A19: Band 6 | B19: H | D19: ='2021 Data By Pay Band'!K206 -> 1087 | F19: =D19/SUM($D$19:$D$22) -> 0.9810469314
B20: LGB | D20: ='2021 Data By Pay Band'!L207 -> 21 | F20: =D20/SUM($D$19:$D$22) -> 0.01895306859
B21: ND | D21: ='2021 Data By Pay Band'!L208 -> 0 | F21: =D21/SUM($D$19:$D$22) -> 0
B22: NR | D22: ='2021 Data By Pay Band'!L209 -> 0 | F22: =D22/SUM($D$19:$D$22) -> 0
A23: Band 7 | B23: H | C23: ='2021 Data By Pay Band'!L206 -> 817 | E23: =C23/SUM($C$23:$C$26) -> 0.9726190476
B24: LGB | C24: ='2021 Data By Pay Band'!M207 -> 23 | E24: =C24/SUM($C$23:$C$26) -> 0.02738095238
B25: ND | C25: ='2021 Data By Pay Band'!M208 -> 0 | E25: =C25/SUM($C$23:$C$26) -> 0
B26: NR | C26: ='2021 Data By Pay Band'!M209 -> 0 | E26: =C26/SUM($C$23:$C$26) -> 0
A27: Band 8A/B | B27: H | D27: ='2021 Data By Pay Band'!M206 -> 432 | F27: =D27/SUM($D$27:$D$30) -> 0.9908256881
B28: LGB | D28: ='2021 Data By Pay Band'!N207 -> 3 | F28: =D28/SUM($D$27:$D$30) -> 0.006880733945
B29: ND | D29: ='2021 Data By Pay Band'!N208 -> 0 | F29: =D29/SUM($D$27:$D$30) -> 0
B30: NR | D30: ='2021 Data By Pay Band'!N209 -> 1 | F30: =D30/SUM($D$27:$D$30) -> 0.002293577982
A31: Band 8C-9 | B31: H | C31: ='2021 Data By Pay Band'!N206 -> 182 | E31: =C31/SUM($C$31:$C$34) -> 0.9891304348
B32: LGB | C32: ='2021 Data By Pay Band'!O207 -> 2 | E32: =C32/SUM($C$31:$C$34) -> 0.01086956522
B33: ND | C33: ='2021 Data By Pay Band'!O208 -> 0 | E33: =C33/SUM($C$31:$C$34) -> 0
B34: NR | C34: ='2021 Data By Pay Band'!O209 -> 0 | E34: =C34/SUM($C$31:$C$34) -> 0
A35: Trainee Grade Doctor | B35: H | D35: ='2021 Data By Pay Band'!O206 -> 31 | F35: =D35/SUM($D$35:$D$38) -> 0.6326530612
B36: LGB | D36: ='2021 Data By Pay Band'!P207 -> 17 | F36: =D36/SUM($D$35:$D$38) -> 0.3469387755
B37: ND | D37: ='2021 Data By Pay Band'!P208 -> 0 | F37: =D37/SUM($D$35:$D$38) -> 0
B38: NR | D38: ='2021 Data By Pay Band'!P209 -> 1 | F38: =D38/SUM($D$35:$D$38) -> 0.02040816327
A39: Career Grade Doctor | B39: H | C39: ='2021 Data By Pay Band'!P206 -> 417 | E39: =C39/SUM($C$39:$C$42) -> 0.9976076555
B40: LGB | C40: ='2021 Data By Pay Band'!Q207 -> 1 | E40: =C40/SUM($C$39:$C$42) -> 0.002392344498
B41: ND | C41: ='2021 Data By Pay Band'!Q208 -> 0 | E41: =C41/SUM($C$39:$C$42) -> 0
B42: NR | C42: ='2021 Data By Pay Band'!Q209 -> 0 | E42: =C42/SUM($C$39:$C$42) -> 0
A43: Consultant | B43: H | D43: ='2021 Data By Pay Band'!Q206 -> 19 | F43: =D43/SUM($D$43:$D$46) -> 0.8260869565
B44: LGB | D44: ='2021 Data By Pay Band'!R207 -> 4 | F44: =D44/SUM($D$27:$D$30) -> 0.009174311927
B45: ND | D45: ='2021 Data By Pay Band'!R208 -> 0 | F45: =D45/SUM($D$27:$D$30) -> 0
B46: NR | D46: ='2021 Data By Pay Band'!R209 -> 0 | F46: =D46/SUM($D$27:$D$30) -> 0
A47: Other | B47: H | C47: ='2021 Data By Pay Band'!R206 -> 215 | E47: =C47/SUM($C$47:$C$50) -> 0.9817351598
B48: LGB | C48: ='2021 Data By Pay Band'!S207 -> 4 | E48: =C48/SUM($C$47:$C$50) -> 0.01826484018
B49: ND | C49: ='2021 Data By Pay Band'!S208 -> 0 | E49: =C49/SUM($C$47:$C$50) -> 0
B50: NR | C50: ='2021 Data By Pay Band'!S209 -> 0 | E50: =C50/SUM($C$47:$C$50) -> 0

Sheet RB Graph Data ET (hidden)
B2: Religious Belief | C2: Value | E2: Percentage | H2: Dividers | I2: 10
A3: Substantive - Full Time | B3: A | C3: ='2021 Data by Employee Type'!K172 -> 734 | E3: =C3/SUM($C$3:$C$12) -> 0.2204866326 | I3: X | J3: Y
B4: B | C4: ='2021 Data by Employee Type'!K173 -> 21 | E4: =C4/SUM($C$3:$C$12) -> 0.006308200661 | H4: 1 | I4: =$I$2*H4+0.5 -> 10.5 | J4: 0
B5: C | C5: ='2021 Data by Employee Type'!K174 -> 1503 | E5: 0.451486933 | H5: 2 | I5: =$I$2*H5+0.5 -> 20.5 | J5: 0
B6: H | C6: ='2021 Data by Employee Type'!K175 -> 40 | E6: 0.01201562031 | H6: 3 | I6: =$I$2*H6+0.5 -> 30.5 | J6: 0
B7: I | C7: ='2021 Data by Employee Type'!K176 -> 47 | E7: 0.01411835386
B8: J | C8: ='2021 Data by Employee Type'!K177 -> 3 | E8: 0.000901171523
B9: S | C9: ='2021 Data by Employee Type'!K178 -> 6 | E9: 0.001802343046
B10: O | C10: ='2021 Data by Employee Type'!K179 -> 256 | E10: 0.07689996996
B11: ND | C11: ='2021 Data by Employee Type'!K180 -> 428 | E11: 0.1285671373
B12: NR | C12: ='2021 Data by Employee Type'!K181 -> 291 | E12: 0.08741363773
A13: Substantive - Part Time | B13: A | D13: ='2021 Data by Employee Type'!L172 -> 372 | F13: =D13/SUM($D$13:$D$22) -> 0.1548064919
B14: B | D14: ='2021 Data by Employee Type'!L173 -> 10 | F14: 0.004161464836
B15: C | D15: ='2021 Data by Employee Type'!L174 -> 1098 | F15: 0.456928839
B16: H | D16: ='2021 Data by Employee Type'!L175 -> 9 | F16: 0.003745318352
B17: I | D17: ='2021 Data by Employee Type'!L176 -> 8 | F17: 0.003329171868
B18: J | D18: ='2021 Data by Employee Type'!L177 -> 3 | F18: 0.001248439451
B19: S | D19: ='2021 Data by Employee Type'!L178 -> 2 | F19: 0.0008322929671
B20: O | D20: ='2021 Data by Employee Type'!L179 -> 201 | F20: 0.0836454432
B21: ND | D21: ='2021 Data by Employee Type'!L180 -> 390 | F21: 0.1622971286
B22: NR | D22: ='2021 Data by Employee Type'!L181 -> 310 | F22: 0.1290054099
A23: Bank | B23: A | C23: ='2021 Data by Employee Type'!M172 -> 356 | E23: =C23/SUM($C$23:$C$32) -> 0.231620039
B24: B | C24: ='2021 Data by Employee Type'!M173 -> 11 | E24: =C24/SUM($C$23:$C$32) -> 0.007156798959
B25: C | C25: ='2021 Data by Employee Type'!M174 -> 623 | E25: 0.4053350683
B26: H | C26: ='2021 Data by Employee Type'!M175 -> 12 | E26: 0.007807417046
B27: I | C27: ='2021 Data by Employee Type'!M176 -> 21 | E27: 0.01366297983
B28: J | C28: ='2021 Data by Employee Type'!M177 -> 2 | E28: 0.001301236174
B29: S | C29: ='2021 Data by Employee Type'!M178 -> 2 | E29: 0.001301236174
B30: O | C30: ='2021 Data by Employee Type'!M179 -> 157 | E30: 0.1021470397
B31: ND | C31: ='2021 Data by Employee Type'!M180 -> 261 | E31: 0.1698113208
B32: NR | C32: ='2021 Data by Employee Type'!M181 -> 92 | E32: 0.05985686402

Sheet RS Graph Data ET (hidden)
B2: Relationship Status | C2: Value | E2: Percentage | H2: Dividers | I2: 7
A3: Substantive - Full Time | B3: S | C3: ='2021 Data by Employee Type'!K141 -> 1627 | E3: =C3/SUM($C$3:$C$9) -> 0.488735356 | I3: X | J3: Y
B4: M | C4: ='2021 Data by Employee Type'!K142 -> 1347 | E4: 0.4046260138 | H4: 1 | I4: =$I$2*H4+0.5 -> 7.5 | J4: 0
B5: C | C5: ='2021 Data by Employee Type'!K143 -> 45 | E5: 0.01351757284 | H5: 2 | I5: =$I$2*H5+0.5 -> 14.5 | J5: 0
B6: D | C6: ='2021 Data by Employee Type'!K144 -> 164 | E6: 0.04926404326 | H6: 3 | I6: =$I$2*H6+0.5 -> 21.5 | J6: 0
B7: LS | C7: ='2021 Data by Employee Type'!K145 -> 24 | E7: 0.007209372184
B8: W | C8: ='2021 Data by Employee Type'!K146 -> 12 | E8: 0.003604686092
B9: NR | C9: ='2021 Data by Employee Type'!K147 -> 110 | E9: 0.03304295584
A10: Substantive - Part Time | B10: S | D10: ='2021 Data by Employee Type'!L141 -> 614 | F10: =D10/SUM($D$10:$D$16) -> 0.2555139409
B11: M | D11: ='2021 Data by Employee Type'!L142 -> 1489 | F11: 0.619642114
B12: C | D12: ='2021 Data by Employee Type'!L143 -> 29 | F12: 0.01206824802
B13: D | D13: ='2021 Data by Employee Type'!L144 -> 147 | F13: 0.06117353308
B14: LS | D14: ='2021 Data by Employee Type'!L145 -> 20 | F14: 0.008322929671
B15: W | D15: ='2021 Data by Employee Type'!L146 -> 25 | F15: 0.01040366209
B16: NR | D16: ='2021 Data by Employee Type'!L147 -> 79 | F16: 0.0328755722
A17: Bank | B17: S | C17: ='2021 Data by Employee Type'!M141 -> 781 | E17: =C17/SUM($C$17:$C$23) -> 0.5081327261
B18: M | C18: ='2021 Data by Employee Type'!M142 -> 557 | E18: 0.3623942746
B19: C | C19: ='2021 Data by Employee Type'!M143 -> 20 | E19: 0.01301236174
B20: D | C20: ='2021 Data by Employee Type'!M144 -> 62 | E20: 0.04033832141
B21: LS | C21: ='2021 Data by Employee Type'!M145 -> 4 | E21: 0.002602472349
B22: W | C22: ='2021 Data by Employee Type'!M146 -> 7 | E22: 0.00455432661
B23: NR | C23: ='2021 Data by Employee Type'!M147 -> 106 | E23: 0.06896551724

Sheet A Graph Data ET (hidden)
B2: Age Band | C2: Value | E2: Percentage | H2: Dividers | I2: 6
A3: Substantive - Full Time | B3: 16-25 | C3: ='2021 Data by Employee Type'!K27 -> 382 | E3: =C3/SUM($C$3:$C$8) -> 0.1147491739 | I3: X | J3: Y
B4: 26-35 | C4: ='2021 Data by Employee Type'!K28 -> 1098 | E4: 0.3298287774 | H4: 1 | I4: =$I$2*H4+0.5 -> 6.5 | J4: 0
B5: 36-45 | C5: ='2021 Data by Employee Type'!K29 -> 663 | E5: 0.1991589066 | H5: 2 | I5: =$I$2*H5+0.5 -> 12.5 | J5: 0
B6: 46-55 | C6: ='2021 Data by Employee Type'!K30 -> 765 | E6: 0.2297987384 | H6: 3 | I6: =$I$2*H6+0.5 -> 18.5 | J6: 0
B7: 56-65 | C7: ='2021 Data by Employee Type'!K31 -> 408 | E7: 0.1225593271
B8: >65 | C8: ='2021 Data by Employee Type'!K32 -> 13 | E8: 0.0039050766
A9: Substantive - Part Time | B9: 16-25 | D9: ='2021 Data by Employee Type'!L27 -> 76 | F9: =D9/SUM($D$9:$D$14) -> 0.03162713275
B10: 26-35 | D10: ='2021 Data by Employee Type'!L28 -> 488 | F10: 0.203079484
B11: 36-45 | D11: ='2021 Data by Employee Type'!L29 -> 638 | F11: 0.2655014565
B12: 46-55 | D12: ='2021 Data by Employee Type'!L30 -> 597 | F12: 0.2484394507
B13: 56-65 | D13: ='2021 Data by Employee Type'!L31 -> 516 | F13: 0.2147315855
B14: >65 | D14: ='2021 Data by Employee Type'!L32 -> 88 | F14: 0.03662089055
A15: Bank | B15: 16-25 | C15: ='2021 Data by Employee Type'!M27 -> 365 | E15: =C15/SUM($C$15:$C$20) -> 0.2374756018
B16: 26-35 | C16: ='2021 Data by Employee Type'!M28 -> 433 | E16: 0.2817176318
B17: 36-45 | C17: ='2021 Data by Employee Type'!M29 -> 285 | E17: 0.1854261548
B18: 46-55 | C18: ='2021 Data by Employee Type'!M30 -> 206 | E18: 0.134027326
B19: 56-65 | C19: ='2021 Data by Employee Type'!M31 -> 186 | E19: 0.1210149642
B20: >65 | C20: ='2021 Data by Employee Type'!M32 -> 62 | E20: 0.04033832141

Sheet D Graph Data ET (hidden)
B2: Disability | C2: Value | E2: Percentage | H2: Dividers | I2: 4
A3: Substantive - Full Time | B3: Y | C3: ='2021 Data by Employee Type'!K57 -> 109 | E3: =C3/SUM($C$3:$C$6) -> 0.03274256533 | I3: X | J3: Y
B4: N | C4: ='2021 Data by Employee Type'!K58 -> 2699 | E4: =C4/SUM($C$3:$C$6) -> 0.8107539802 | H4: 1 | I4: =$I$2*H4+0.5 -> 4.5 | J4: 0
B5: ND | C5: ='2021 Data by Employee Type'!K59 -> 34 | E5: =C5/SUM($C$3:$C$6) -> 0.01021327726 | H5: 2 | I5: =$I$2*H5+0.5 -> 8.5 | J5: 0
B6: NR | C6: ='2021 Data by Employee Type'!K60 -> 487 | E6: =C6/SUM($C$3:$C$6) -> 0.1462901772 | H6: 3 | I6: =$I$2*H6+0.5 -> 12.5 | J6: 0
A7: Substantive - Part Time | B7: Y | D7: ='2021 Data by Employee Type'!L57 -> 76 | F7: =D7/SUM($D$7:$D$10) -> 0.03162713275
B8: N | D8: ='2021 Data by Employee Type'!L58 -> 1811 | F8: =D8/SUM($D$7:$D$10) -> 0.7536412817
B9: ND | D9: ='2021 Data by Employee Type'!L59 -> 47 | F9: =D9/SUM($D$7:$D$10) -> 0.01955888473
B10: NR | D10: ='2021 Data by Employee Type'!L60 -> 469 | F10: =D10/SUM($D$7:$D$10) -> 0.1951727008
A11: Bank | B11: Y | C11: ='2021 Data by Employee Type'!M57 -> 48 | E11: =C11/SUM($C$11:$C$14) -> 0.03122966818
B12: N | C12: ='2021 Data by Employee Type'!M58 -> 1290 | E12: =C12/SUM($C$11:$C$14) -> 0.8392973325
B13: ND | C13: ='2021 Data by Employee Type'!M59 -> 42 | E13: =C13/SUM($C$11:$C$14) -> 0.02732595966
B14: NR | C14: ='2021 Data by Employee Type'!M60 -> 157 | E14: =C14/SUM($C$11:$C$14) -> 0.1021470397

Sheet E Graph Data ET (hidden)
B2: Ethnicity | C2: Value | E2: Percentage | H2: Dividers | I2: 4
A3: Substantive - Full Time | B3: WB | C3: ='2021 Data by Employee Type'!K86 -> 2294 | E3: =C3/SUM($C$3:$C$6) -> 0.6890958246 | I3: X | J3: Y
B4: WO | C4: ='2021 Data by Employee Type'!K87 -> 290 | E4: =C4/SUM($C$3:$C$6) -> 0.08711324722 | H4: 1 | I4: =$I$2*H4+0.5 -> 4.5 | J4: 0
B5: EM(OWM) | C5: ='2021 Data by Employee Type'!K88 -> 694 | E5: =C5/SUM($C$3:$C$6) -> 0.2084710123 | H5: 2 | I5: =$I$2*H5+0.5 -> 8.5 | J5: 0
B6: NR | C6: ='2021 Data by Employee Type'!K89 -> 51 | E6: =C6/SUM($C$3:$C$6) -> 0.01531991589 | H6: 3 | I6: =$I$2*H6+0.5 -> 12.5 | J6: 0
A7: Substantive - Part Time | B7: WB | D7: ='2021 Data by Employee Type'!L86 -> 2004 | F7: =D7/SUM($D$7:$D$10) -> 0.8339575531
B8: WO | D8: ='2021 Data by Employee Type'!L87 -> 173 | F8: =D8/SUM($D$7:$D$10) -> 0.07199334166
B9: EM(OWM) | D9: ='2021 Data by Employee Type'!L88 -> 193 | F9: =D9/SUM($D$7:$D$10) -> 0.08031627133
B10: NR | D10: ='2021 Data by Employee Type'!L89 -> 33 | F10: =D10/SUM($D$7:$D$10) -> 0.01373283396
A11: Bank | B11: WB | C11: ='2021 Data by Employee Type'!M86 -> 1113 | E11: =C11/SUM($C$11:$C$14) -> 0.724137931
B12: WO | C12: ='2021 Data by Employee Type'!M87 -> 140 | E12: =C12/SUM($C$11:$C$14) -> 0.09108653221
B13: EM(OWM) | C13: ='2021 Data by Employee Type'!M88 -> 204 | E13: =C13/SUM($C$11:$C$14) -> 0.1327260898
B14: NR | C14: ='2021 Data by Employee Type'!M89 -> 80 | E14: =C14/SUM($C$11:$C$14) -> 0.05204944697

Sheet SO Graph Data ET (hidden)
B2: Sexual Orientation | C2: Value | E2: Percentage | H2: Dividers | I2: 6
A3: Substantive - Full Time | B3: H | C3: ='2021 Data by Employee Type'!K206 -> 2662 | E3: =C3/SUM($C$3:$C$8) -> 0.7996395314 | I3: X | J3: Y
B4: LGB | C4: ='2021 Data by Employee Type'!K207 -> 118 | E4: =C4/SUM($C$3:$C$8) -> 0.0354460799 | H4: 1 | I4: =$I$2*H4+0.5 -> 6.5 | J4: 0
B5: O | C5: ='2021 Data by Employee Type'!K208 -> 0 | E5: 0 | H5: 2 | I5: =$I$2*H5+0.5 -> 12.5 | J5: 0
B6: U | C6: ='2021 Data by Employee Type'!K209 -> 2 | E6: 0.0006007810153 | H6: 3 | I6: =$I$2*H6+0.5 -> 18.5 | J6: 0
B7: ND | C7: ='2021 Data by Employee Type'!K210 -> 243 | E7: 0.07299489336
B8: NR | C8: ='2021 Data by Employee Type'!K211 -> 304 | E8: 0.09131871433
A9: Substantive - Part Time | B9: H | D9: ='2021 Data by Employee Type'!L206 -> 1827 | F9: =D9/SUM($D$9:$D$14) -> 0.7602996255
B10: LGB | D10: ='2021 Data by Employee Type'!L207 -> 37 | F10: =D10/SUM($D$9:$D$14) -> 0.01539741989
B11: O | D11: ='2021 Data by Employee Type'!L208 -> 0 | F11: 0
B12: U | D12: ='2021 Data by Employee Type'!L209 -> 3 | F12: 0.001248439451
B13: ND | D13: ='2021 Data by Employee Type'!L210 -> 218 | F13: 0.09071993342
B14: NR | D14: ='2021 Data by Employee Type'!L211 -> 318 | F14: 0.1323345818
A15: Bank | B15: H | C15: ='2021 Data by Employee Type'!M206 -> 1234 | E15: =C15/SUM($C$15:$C$20) -> 0.8028627196
B16: LGB | C16: ='2021 Data by Employee Type'!M207 -> 50 | E16: =C16/SUM($C$15:$C$20) -> 0.03253090436
B17: O | C17: ='2021 Data by Employee Type'!M208 -> 2 | E17: 0.001301236174
B18: U | C18: ='2021 Data by Employee Type'!M209 -> 8 | E18: 0.005204944697
B19: ND | C19: ='2021 Data by Employee Type'!M210 -> 155 | E19: 0.1008458035
B20: NR | C20: ='2021 Data by Employee Type'!M211 -> 88 | E20: 0.05725439167

Sheet G Graph Data ET (hidden)
B2: Gender | C2: Value | E2: Percentage | H2: Dividers | I2: 2
A3: Substantive - Full Time | B3: F | C3: ='2021 Data by Employee Type'!K115 -> 2223 | E3: =C3/SUM($C$3:$C$4) -> 0.6677680985 | I3: X | J3: Y
B4: M | C4: ='2021 Data by Employee Type'!K116 -> 1106 | E4: =C4/SUM($C$3:$C$4) -> 0.3322319015 | H4: 1 | I4: =$I$2*H4+0.5 -> 2.5 | J4: 0
A5: Substantive - Part Time | B5: F | D5: ='2021 Data by Employee Type'!L115 -> 2154 | F5: =D5/SUM($D$5:$D$6) -> 0.8963795256 | H5: 2 | I5: =$I$2*H5+0.5 -> 4.5 | J5: 0
B6: M | D6: ='2021 Data by Employee Type'!L116 -> 249 | F6: =D6/SUM($D$5:$D$6) -> 0.1036204744 | H6: 3 | I6: =$I$2*H6+0.5 -> 6.5 | J6: 0
A7: Bank | B7: F | C7: ='2021 Data by Employee Type'!M115 -> 1109 | E7: =C7/SUM($C$7:$C$8) -> 0.7215354587
B8: M | C8: ='2021 Data by Employee Type'!M116 -> 428 | E8: =C8/SUM($C$7:$C$8) -> 0.2784645413

Sheet RS Graph Data YY (hidden)
B2: Relationship Status | C2: Value | E2: Percentage | H2: Dividers | I2: 7
A3: 2018 | B3: S | C3: ='Year on Year Comparison'!L139 -> 0.4157380658 | E3: =C3/SUM($C$3:$C$9) -> 0.4157380658 | I3: X | J3: Y
B4: M | C4: ='Year on Year Comparison'!L140 -> 0.4667767231 | E4: 0.4667767231 | H4: 1 | I4: =$I$2*H4+0.5 -> 7.5 | J4: 0
B5: C | C5: ='Year on Year Comparison'!L141 -> 0.01293162746 | E5: 0.01293162746 | H5: 2 | I5: =$I$2*H5+0.5 -> 14.5 | J5: 0
B6: D | C6: ='Year on Year Comparison'!L142 -> 0.05131379832 | E6: 0.05131379832 | H6: 3 | I6: =$I$2*H6+0.5 -> 21.5 | J6: 0
B7: LS | C7: ='Year on Year Comparison'!L143 -> 0.006603384234 | E7: 0.006603384234 | H7: 4 | I7: =$I$2*H7+0.5 -> 28.5 | J7: 0
B8: W | C8: ='Year on Year Comparison'!L144 -> 0.006053102215 | E8: 0.006053102215 | H8: 5 | I8: =$I$2*H8+0.5 -> 35.5 | J8: 0
B9: NR | C9: ='Year on Year Comparison'!L145 -> 0.04058329894 | E9: 0.04058329894
A10: 2017 | B10: S | D10: ='Year on Year Comparison'!M139 -> 0.3982273363 | F10: =D10/SUM($D$10:$D$16) -> 0.3982273363
B11: M | D11: ='Year on Year Comparison'!M140 -> 0.4877935002 | F11: 0.4877935002
B12: C | D12: ='Year on Year Comparison'!M141 -> 0.01166226092 | F12: 0.01166226092
B13: D | D13: ='Year on Year Comparison'!M142 -> 0.05271341937 | F13: 0.05271341937
B14: LS | D14: ='Year on Year Comparison'!M143 -> 0.009018815114 | F14: 0.009018815114
B15: W | D15: ='Year on Year Comparison'!M144 -> 0.007463846991 | F15: 0.007463846991
B16: NR | D16: ='Year on Year Comparison'!M145 -> 0.03312082102 | F16: 0.03312082102
A17: 2016 | B17: S | C17: ='Year on Year Comparison'!N139 -> 0.3877644194 | E17: =C17/SUM($C$17:$C$23) -> 0.3877644194
B18: M | C18: ='Year on Year Comparison'!N140 -> 0.4987064374 | E18: 0.4987064374
B19: C | C19: ='Year on Year Comparison'!N141 -> 0.01171815553 | E19: 0.01171815553
B20: D | C20: ='Year on Year Comparison'!N142 -> 0.05250342414 | E20: 0.05250342414
B21: LS | C21: ='Year on Year Comparison'!N143 -> 0.008370111094 | E21: 0.008370111094
B22: W | C22: ='Year on Year Comparison'!N144 -> 0.007000456552 | E22: 0.007000456552
B23: NR | C23: ='Year on Year Comparison'!N145 -> 0.03393699589 | E23: 0.03393699589
A24: 2015 | B24: S | D24: ='Year on Year Comparison'!O139 -> 0.3938778697 | F24: =D24/SUM($D$24:$D$30) -> 0.3938778697
B25: M | D25: ='Year on Year Comparison'!O140 -> 0.4974230829 | F25: 0.4974230829
B26: C | D26: ='Year on Year Comparison'!O141 -> 0.01093237545 | F26: 0.01093237545
B27: D | D27: ='Year on Year Comparison'!O142 -> 0.04872715914 | F27: 0.04872715914
B28: LS | D28: ='Year on Year Comparison'!O143 -> 0.009214430736 | F28: 0.009214430736
B29: W | D29: ='Year on Year Comparison'!O144 -> 0.006559425269 | F29: 0.006559425269
B30: NR | D30: ='Year on Year Comparison'!O145 -> 0.03326565672 | F30: 0.03326565672
A31: 2014 | B31: S | C31: ='Year on Year Comparison'!P139 -> 0.3934663663 | E31: =C31/SUM($C$31:$C$37) -> 0.3934663663
B32: M | C32: ='Year on Year Comparison'!P140 -> 0.5012874155 | E32: 0.5012874155
B33: C | C33: ='Year on Year Comparison'!P141 -> 0.007402639202 | E33: 0.007402639202
B34: D | C34: ='Year on Year Comparison'!P142 -> 0.05230125523 | E34: 0.05230125523
B35: LS | C35: ='Year on Year Comparison'!P143 -> 0.01029932411 | E35: 0.01029932411
B36: W | C36: ='Year on Year Comparison'!P144 -> 0.006115223688 | E36: 0.006115223688
B37: NR | C37: ='Year on Year Comparison'!P145 -> 0.02912777599 | E37: 0.02912777599

Sheet A Graph Data YY (hidden)
B2: Age Band | C2: Value | E2: Percentage | H2: Dividers | I2: 6
A3: ='Year on Year Comparison'!$L$26 -> 2021 | B3: 16-25 | C3: ='Year on Year Comparison'!L27 -> 0.1132205255 | E3: =C3/SUM($C$3:$C$8) -> 0.1132205255 | I3: X | J3: Y
B4: 26-35 | C4: ='Year on Year Comparison'!L28 -> 0.2777548494 | E4: 0.2777548494 | H4: 1 | I4: =$I$2*H4+0.5 -> 6.5 | J4: 0
B5: 36-45 | C5: ='Year on Year Comparison'!L29 -> 0.2181868207 | E5: 0.2181868207 | H5: 2 | I5: =$I$2*H5+0.5 -> 12.5 | J5: 0
B6: 46-55 | C6: ='Year on Year Comparison'!L30 -> 0.2157105517 | E6: 0.2157105517 | H6: 3 | I6: =$I$2*H6+0.5 -> 18.5 | J6: 0
B7: 56-65 | C7: ='Year on Year Comparison'!L31 -> 0.1527032604 | E7: 0.1527032604 | H7: 4 | I7: =$I$2*H7+0.5 -> 24.5 | J7: 0
B8: >65 | C8: ='Year on Year Comparison'!L32 -> 0.0224239923 | E8: 0.0224239923 | H8: 5 | I8: =$I$2*H8+0.5 -> 30.5 | J8: 0
A9: ='Year on Year Comparison'!$M$26 -> 2020 | B9: 16-25 | D9: ='Year on Year Comparison'!M27 -> 0.1058933292 | F9: =D9/SUM($D$9:$D$14) -> 0.1058933292
B10: 26-35 | D10: ='Year on Year Comparison'!M28 -> 0.2609236511 | F10: 0.2609236511
B11: 36-45 | D11: ='Year on Year Comparison'!M29 -> 0.2155185819 | F11: 0.2155185819
B12: 46-55 | D12: ='Year on Year Comparison'!M30 -> 0.2358886643 | F12: 0.2358886643
B13: 56-65 | D13: ='Year on Year Comparison'!M31 -> 0.1629606593 | F13: 0.1629606593
B14: >65 | D14: ='Year on Year Comparison'!M32 -> 0.01881511429 | F14: 0.01881511429
A15: ='Year on Year Comparison'!$N$26 -> 2019 | B15: 16-25 | C15: ='Year on Year Comparison'!N27 -> 0.1022675392 | E15: =C15/SUM($C$15:$C$20) -> 0.1022675392
B16: 26-35 | C16: ='Year on Year Comparison'!N28 -> 0.2596256278 | E16: 0.2596256278
B17: 36-45 | C17: ='Year on Year Comparison'!N29 -> 0.2148835794 | E17: 0.2148835794
B18: 46-55 | C18: ='Year on Year Comparison'!N30 -> 0.2410591995 | E18: 0.2410591995
B19: 56-65 | C19: ='Year on Year Comparison'!N31 -> 0.1584233754 | E19: 0.1584233754
B20: >65 | C20: ='Year on Year Comparison'!N32 -> 0.02374067874 | E20: 0.02374067874
A21: ='Year on Year Comparison'!$O$26 -> 2018 | B21: 16-25 | D21: ='Year on Year Comparison'!O27 -> 0.1082305169 | F21: =D21/SUM($D$21:$D$26) -> 0.1082305169
B22: 26-35 | D22: ='Year on Year Comparison'!O28 -> 0.2511322817 | F22: 0.2511322817
B23: 36-45 | D23: ='Year on Year Comparison'!O29 -> 0.2203654537 | F23: 0.2203654537
B24: 46-55 | D24: ='Year on Year Comparison'!O30 -> 0.242698735 | F24: 0.242698735
B25: 56-65 | D25: ='Year on Year Comparison'!O31 -> 0.1536779635 | F25: 0.1536779635
B26: >65 | D26: ='Year on Year Comparison'!O32 -> 0.0238950492 | F26: 0.0238950492
A27: ='Year on Year Comparison'!$P$26 -> 2017 | B27: 16-25 | C27: ='Year on Year Comparison'!P27 -> 0.1068554876 | E27: =C27/SUM($C$27:$C$32) -> 0.1068554876
B28: 26-35 | C28: ='Year on Year Comparison'!P28 -> 0.2518506598 | E28: 0.2518506598
B29: 36-45 | C29: ='Year on Year Comparison'!P29 -> 0.2209526875 | E29: 0.2209526875
B30: 46-55 | C30: ='Year on Year Comparison'!P30 -> 0.2439652398 | E30: 0.2439652398
B31: 56-65 | C31: ='Year on Year Comparison'!P31 -> 0.1515931767 | E31: 0.1515931767
B32: >65 | C32: ='Year on Year Comparison'!P32 -> 0.02478274863 | E32: 0.02478274863

Sheet D Graph Data YY (hidden)
B2: Disability | C2: Value | E2: Percentage | H2: Dividers | I2: 4
A3: ='Year on Year Comparison'!$L$56 -> 2021 | B3: Y | C3: ='Year on Year Comparison'!L57 -> 0.03205392764 | E3: =C3/SUM($C$3:$C$6) -> 0.03205392764 | I3: X | J3: Y
B4: N | C4: ='Year on Year Comparison'!L58 -> 0.7979089283 | E4: =C4/SUM($C$3:$C$6) -> 0.7979089283 | H4: 1 | I4: =$I$2*H4+0.5 -> 4.5 | J4: 0
B5: ND | C5: ='Year on Year Comparison'!L59 -> 0.0169211721 | E5: =C5/SUM($C$3:$C$6) -> 0.0169211721 | H5: 2 | I5: =$I$2*H5+0.5 -> 8.5 | J5: 0
B6: NR | C6: ='Year on Year Comparison'!L60 -> 0.1531159719 | E6: =C6/SUM($C$3:$C$6) -> 0.1531159719 | H6: 3 | I6: =$I$2*H6+0.5 -> 12.5 | J6: 0
A7: ='Year on Year Comparison'!$M$56 -> 2020 | B7: Y | D7: ='Year on Year Comparison'!M57 -> 0.03343181465 | F7: =D7/SUM($D$7:$D$10) -> 0.03343181465 | H7: 4 | I7: =$I$2*H7+0.5 -> 16.5 | J7: 0
B8: N | D8: ='Year on Year Comparison'!M58 -> 0.7813714819 | F8: =D8/SUM($D$7:$D$10) -> 0.7813714819 | H8: 5 | I8: =$I$2*H8+0.5 -> 20.5 | J8: 0
B9: ND | D9: ='Year on Year Comparison'!M59 -> 0.01554968123 | F9: =D9/SUM($D$7:$D$10) -> 0.01554968123
B10: NR | D10: ='Year on Year Comparison'!M60 -> 0.1696470222 | F10: =D10/SUM($D$7:$D$10) -> 0.1696470222
A11: ='Year on Year Comparison'!$N$56 -> 2019 | B11: Y | C11: ='Year on Year Comparison'!N57 -> 0.031958606 | E11: =C11/SUM($C$11:$C$14) -> 0.031958606
B12: N | C12: ='Year on Year Comparison'!N58 -> 0.7662456247 | E12: =C12/SUM($C$11:$C$14) -> 0.7662456247
B13: ND | C13: ='Year on Year Comparison'!N59 -> 0.0140009131 | E13: =C13/SUM($C$11:$C$14) -> 0.0140009131
B14: NR | C14: ='Year on Year Comparison'!N60 -> 0.1877948562 | E14: =C14/SUM($C$11:$C$14) -> 0.1877948562
A15: ='Year on Year Comparison'!$O$56 -> 2018 | B15: Y | D15: ='Year on Year Comparison'!O57 -> 0.03295330314 | F15: =D15/SUM($D$15:$D$18) -> 0.03295330314
B16: N | D16: ='Year on Year Comparison'!O58 -> 0.7391847571 | F16: =D16/SUM($D$15:$D$18) -> 0.7391847571
B17: ND | D17: ='Year on Year Comparison'!O59 -> 0.01155708262 | F17: =D17/SUM($D$15:$D$18) -> 0.01155708262
B18: NR | D18: ='Year on Year Comparison'!O60 -> 0.2163048571 | F18: =D18/SUM($D$15:$D$18) -> 0.2163048571
A19: ='Year on Year Comparison'!$P$56 -> 2017 | B19: Y | C19: ='Year on Year Comparison'!P57 -> 0.03331187641 | E19: =C19/SUM($C$19:$C$22) -> 0.03331187641
B20: N | C20: ='Year on Year Comparison'!P58 -> 0.7030897972 | E20: =C20/SUM($C$19:$C$22) -> 0.7030897972
B21: ND | C21: ='Year on Year Comparison'!P59 -> 0.008690054715 | E21: =C21/SUM($C$19:$C$22) -> 0.008690054715
B22: NR | C22: ='Year on Year Comparison'!P60 -> 0.2549082716 | E22: =C22/SUM($C$19:$C$22) -> 0.2549082716

Sheet E Graph Data YY (hidden)
B2: Ethnicity | C2: Value | E2: Percentage | H2: Dividers | I2: 4
A3: ='Year on Year Comparison'!$L$84 -> 2021 | B3: WB | C3: ='Year on Year Comparison'!L85 -> 0.7443940019 | E3: =C3/SUM($C$3:$C$6) -> 0.7443940019 | I3: X | J3: Y
B4: WO | C4: ='Year on Year Comparison'!L86 -> 0.08295501444 | E4: =C4/SUM($C$3:$C$6) -> 0.08295501444 | H4: 1 | I4: =$I$2*H4+0.5 -> 4.5 | J4: 0
B5: EM(OWM) | C5: ='Year on Year Comparison'!L87 -> 0.1500894208 | E5: =C5/SUM($C$3:$C$6) -> 0.1500894208 | H5: 2 | I5: =$I$2*H5+0.5 -> 8.5 | J5: 0
B6: NR | C6: ='Year on Year Comparison'!L88 -> 0.0225615628 | E6: =C6/SUM($C$3:$C$6) -> 0.0225615628 | H6: 3 | I6: =$I$2*H6+0.5 -> 12.5 | J6: 0
A7: ='Year on Year Comparison'!$M$84 -> 2020 | B7: WB | D7: ='Year on Year Comparison'!M85 -> 0.7648888198 | F7: =D7/SUM($D$7:$D$10) -> 0.7648888198 | H7: 4 | I7: =$I$2*H7+0.5 -> 16.5 | J7: 0
B8: WO | D8: ='Year on Year Comparison'!M86 -> 0.09236510652 | F8: =D8/SUM($D$7:$D$10) -> 0.09236510652 | H8: 5 | I8: =$I$2*H8+0.5 -> 20.5 | J8: 0
B9: EM(OWM) | D9: ='Year on Year Comparison'!M87 -> 0.1289068574 | F9: =D9/SUM($D$7:$D$10) -> 0.1289068574
B10: NR | D10: ='Year on Year Comparison'!M88 -> 0.0138392163 | F10: =D10/SUM($D$7:$D$10) -> 0.0138392163
A11: ='Year on Year Comparison'!$N$84 -> 2019 | B11: WB | C11: ='Year on Year Comparison'!N85 -> 0.7657890732 | E11: =C11/SUM($C$11:$C$14) -> 0.7657890732
B12: WO | C12: ='Year on Year Comparison'!N86 -> 0.09663673718 | E12: =C12/SUM($C$11:$C$14) -> 0.09663673718
B13: EM(OWM) | C13: ='Year on Year Comparison'!N87 -> 0.1252472987 | E13: =C13/SUM($C$11:$C$14) -> 0.1252472987
B14: NR | C14: ='Year on Year Comparison'!N88 -> 0.01232689088 | E14: =C14/SUM($C$11:$C$14) -> 0.01232689088
A15: ='Year on Year Comparison'!$O$84 -> 2018 | B15: WB | D15: ='Year on Year Comparison'!O85 -> 0.776823364 | F15: =D15/SUM($D$15:$D$18) -> 0.776823364
B16: WO | D16: ='Year on Year Comparison'!O86 -> 0.1019834453 | F16: =D16/SUM($D$15:$D$18) -> 0.1019834453
B17: EM(OWM) | D17: ='Year on Year Comparison'!O87 -> 0.114165235 | F17: =D17/SUM($D$15:$D$18) -> 0.114165235
B18: NR | D18: ='Year on Year Comparison'!O88 -> 0.007027955646 | F18: =D18/SUM($D$15:$D$18) -> 0.007027955646
A19: ='Year on Year Comparison'!$P$84 -> 2017 | B19: WB | C19: ='Year on Year Comparison'!P85 -> 0.7779208239 | E19: =C19/SUM($C$19:$C$22) -> 0.7779208239
B20: WO | C20: ='Year on Year Comparison'!P86 -> 0.1095912456 | E20: =C20/SUM($C$19:$C$22) -> 0.1095912456
B21: EM(OWM) | C21: ='Year on Year Comparison'!P87 -> 0.1062117799 | E21: =C21/SUM($C$19:$C$22) -> 0.1062117799
B22: NR | C22: ='Year on Year Comparison'!P88 -> 0.006276150628 | E22: =C22/SUM($C$19:$C$22) -> 0.006276150628

Sheet G Graph Data YY (hidden)
B2: Gender | C2: Value | E2: Percentage | H2: Dividers | I2: 2
A3: ='Year on Year Comparison'!$L$112 -> 2021 | B3: F | C3: ='Year on Year Comparison'!L113 -> 0.7547117898 | E3: =C3/SUM($C$3:$C$4) -> 0.7547117898 | I3: X | J3: Y
B4: M | C4: ='Year on Year Comparison'!L114 -> 0.2452882102 | E4: =C4/SUM($C$3:$C$4) -> 0.2452882102 | H4: 1 | I4: =$I$2*H4+0.5 -> 2.5 | J4: 0
A5: ='Year on Year Comparison'!$M$112 -> 2020 | B5: F | D5: ='Year on Year Comparison'!M113 -> 0.7624008708 | F5: =D5/SUM($D$5:$D$6) -> 0.7624008708 | H5: 2 | I5: =$I$2*H5+0.5 -> 4.5 | J5: 0
B6: M | D6: ='Year on Year Comparison'!M114 -> 0.2375991292 | F6: =D6/SUM($D$5:$D$6) -> 0.2375991292 | H6: 3 | I6: =$I$2*H6+0.5 -> 6.5 | J6: 0
A7: ='Year on Year Comparison'!$N$112 -> 2019 | B7: F | C7: ='Year on Year Comparison'!N113 -> 0.7703545883 | E7: =C7/SUM($C$7:$C$8) -> 0.7703545883 | H7: 4 | I7: =$I$2*H7+0.5 -> 8.5 | J7: 0
B8: M | C8: ='Year on Year Comparison'!N114 -> 0.2296454117 | E8: =C8/SUM($C$7:$C$8) -> 0.2296454117 | H8: 5 | I8: =$I$2*H8+0.5 -> 10.5 | J8: 0
A9: ='Year on Year Comparison'!$O$112 -> 2018 | B9: F | D9: ='Year on Year Comparison'!O113 -> 0.7782289552 | F9: =D9/SUM($D$9:$D$10) -> 0.7782289552
B10: M | D10: ='Year on Year Comparison'!O114 -> 0.2217710448 | F10: =D10/SUM($D$9:$D$10) -> 0.2217710448
A11: ='Year on Year Comparison'!$P$112 -> 2017 | B11: F | C11: ='Year on Year Comparison'!P113 -> 0.772610235 | E11: =C11/SUM($C$11:$C$12) -> 0.772610235
B12: M | C12: ='Year on Year Comparison'!P114 -> 0.227389765 | E12: =C12/SUM($C$11:$C$12) -> 0.227389765

Sheet SO Graph Data YY (hidden)
B2: Sexual Orientation | C2: Value | E2: Percentage | H2: Dividers | I2: 6
A3: ='Year on Year Comparison'!$L$138 -> 2021 | B3: H | C3: ='Year on Year Comparison'!L204 -> 0.7873159994 | E3: =C3/SUM($C$3:$C$8) -> 0.7873159994 | I3: X | J3: Y
B4: LGB | C4: ='Year on Year Comparison'!L205 -> 0.0282019535 | E4: =C4/SUM($C$3:$C$8) -> 0.0282019535 | H4: 1 | I4: =$I$2*H4+0.5 -> 6.5 | J4: 0
B5: O | C5: ='Year on Year Comparison'!L206 -> 0.0002751410098 | E5: 0.0002751410098 | H5: 2 | I5: =$I$2*H5+0.5 -> 12.5 | J5: 0
B6: U | C6: ='Year on Year Comparison'!L207 -> 0.001788416563 | E6: 0.001788416563 | H6: 3 | I6: =$I$2*H6+0.5 -> 18.5 | J6: 0
B7: ND | C7: ='Year on Year Comparison'!L208 -> 0.08474343101 | E7: 0.08474343101 | H7: 4 | I7: =$I$2*H7+0.5 -> 24.5 | J7: 0
B8: NR | C8: ='Year on Year Comparison'!L209 -> 0.09767505847 | E8: 0.09767505847 | H8: 5 | I8: =$I$2*H8+0.5 -> 30.5 | J8: 0
A9: ='Year on Year Comparison'!$M$138 -> 2020 | B9: H | D9: ='Year on Year Comparison'!M204 -> 0.7816824755 | F9: =D9/SUM($D$9:$D$14) -> 0.7816824755
B10: LGB | D10: ='Year on Year Comparison'!M205 -> 0.02254703779 | F10: =D10/SUM($D$9:$D$14) -> 0.02254703779
B11: O | D11: ='Year on Year Comparison'!M206 -> 0.0001554968123 | F11: 0.0001554968123
B12: U | D12: ='Year on Year Comparison'!M207 -> 0.001243974499 | F12: 0.001243974499
B13: ND | D13: ='Year on Year Comparison'!M208 -> 0.08241331053 | F13: 0.08241331053
B14: NR | D14: ='Year on Year Comparison'!M209 -> 0.1119577049 | F14: 0.1119577049
A15: ='Year on Year Comparison'!$N$138 -> 2019 | B15: H | C15: ='Year on Year Comparison'!N204 -> 0.7636584995 | E15: =C15/SUM($C$15:$C$20) -> 0.7636584995
B16: LGB | C16: ='Year on Year Comparison'!N205 -> 0.01841424441 | E16: =C16/SUM($C$15:$C$20) -> 0.01841424441
B17: O | C17: ='Year on Year Comparison'!N206 -> 0.0001521838381 | E17: 0.0001521838381
B18: U | C18: ='Year on Year Comparison'!N207 -> 0.0009131030285 | E18: 0.0009131030285
B19: ND | C19: ='Year on Year Comparison'!N208 -> 0.08887536144 | E19: 0.08887536144
B20: NR | C20: ='Year on Year Comparison'!N209 -> 0.1279866078 | E20: 0.1279866078
A21: ='Year on Year Comparison'!$O$138 -> 2018 | B21: H | D21: ='Year on Year Comparison'!O204 -> 0.7421521162 | F21: =D21/SUM($D$21:$D$26) -> 0.7421521162
B22: LGB | D22: ='Year on Year Comparison'!O205 -> 0.01764797751 | F22: =D22/SUM($D$21:$D$26) -> 0.01764797751
B23: O | D23: ='Year on Year Comparison'!O206 -> -
B24: U | D24: ='Year on Year Comparison'!O207 -> -
B25: ND | D25: ='Year on Year Comparison'!O208 -> 0.0913634234 | F25: 0.0913634234
B26: NR | D26: ='Year on Year Comparison'!O209 -> 0.1488364829 | F26: 0.1488364829
A27: ='Year on Year Comparison'!$P$138 -> 2017 | B27: H | C27: ='Year on Year Comparison'!P204 -> 0.5991281274 | E27: =C27/SUM($C$27:$C$32) -> 0.5991281274
B28: LGB | C28: ='Year on Year Comparison'!P205 -> 0.01175132676 | E28: =C28/SUM($C$27:$C$32) -> 0.01175132676
B29: O | C29: ='Year on Year Comparison'!P206 -> -
B30: U | C30: ='Year on Year Comparison'!P207 -> -
B31: ND | C31: ='Year on Year Comparison'!P208 -> 0.09950720243 | E31: 0.09950720243
B32: NR | C32: ='Year on Year Comparison'!P209 -> 0.2896133434 | E32: 0.2896133434

Sheet RB Graph Data YY (hidden)
B2: Religious Belief | C2: Value | E2: Percentage | H2: Dividers | I2: 10
A3: ='Year on Year Comparison'!$L$169 -> 2021 | B3: A | C3: ='Year on Year Comparison'!L170 -> 0.2011280781 | E3: =C3/SUM($C$3:$C$12) -> 0.2011280781 | I3: X | J3: Y
B4: B | C4: ='Year on Year Comparison'!L171 -> 0.005777961205 | E4: =C4/SUM($C$3:$C$12) -> 0.005777961205 | H4: 1 | I4: =$I$2*H4+0.5 -> 10.5 | J4: 0
B5: C | C5: ='Year on Year Comparison'!L172 -> 0.4435273077 | E5: 0.4435273077 | H5: 2 | I5: =$I$2*H5+0.5 -> 20.5 | J5: 0
B6: H | C6: ='Year on Year Comparison'!L173 -> 0.008391800798 | E6: 0.008391800798 | H6: 3 | I6: =$I$2*H6+0.5 -> 30.5 | J6: 0
B7: I | C7: ='Year on Year Comparison'!L174 -> 0.01045535837 | E7: 0.01045535837 | H7: 4 | I7: =$I$2*H7+0.5 -> 40.5 | J7: 0
B8: J | C8: ='Year on Year Comparison'!L175 -> 0.001100564039 | E8: 0.001100564039 | H8: 5 | I8: =$I$2*H8+0.5 -> 50.5 | J8: 0
B9: S | C9: ='Year on Year Comparison'!L176 -> 0.001375705049 | E9: 0.001375705049
B10: O | C10: ='Year on Year Comparison'!L177 -> 0.08446829 | E10: 0.08446829
B11: ND | C11: ='Year on Year Comparison'!L178 -> 0.1484385748 | E11: 0.1484385748
B12: NR | C12: ='Year on Year Comparison'!L179 -> 0.09533635988 | E12: 0.09533635988
A13: ='Year on Year Comparison'!$M$169 -> 2020 | B13: A | D13: ='Year on Year Comparison'!M170 -> 0 | F13: =D13/SUM($D$13:$D$22) -> 
B14: B | D14: ='Year on Year Comparison'!M171 -> 0
B15: C | D15: ='Year on Year Comparison'!M172 -> 0
B16: H | D16: ='Year on Year Comparison'!M173 -> 0
B17: I | D17: ='Year on Year Comparison'!M174 -> 0
B18: J | D18: ='Year on Year Comparison'!M175 -> 0
B19: S | D19: ='Year on Year Comparison'!M176 -> 0
B20: O | D20: ='Year on Year Comparison'!M177 -> 0
B21: ND | D21: ='Year on Year Comparison'!M178 -> 0
B22: NR | D22: ='Year on Year Comparison'!M179 -> 0
A23: ='Year on Year Comparison'!$N$169 -> 2019 | B23: A | C23: ='Year on Year Comparison'!N170 -> 0.171054634 | E23: =C23/SUM($C$23:$C$32) -> 0.171054634
B24: B | C24: ='Year on Year Comparison'!N171 -> 0.004869882818 | E24: =C24/SUM($C$23:$C$32) -> 0.004869882818
B25: C | C25: ='Year on Year Comparison'!N172 -> 0.4462030132 | E25: 0.4462030132
B26: H | C26: ='Year on Year Comparison'!N173 -> 0.007457008066 | E26: 0.007457008066
B27: I | C27: ='Year on Year Comparison'!N174 -> 0.008217927256 | E27: 0.008217927256
B28: J | C28: ='Year on Year Comparison'!N175 -> 0.0009131030285 | E28: 0.0009131030285
B29: S | C29: ='Year on Year Comparison'!N176 -> 0.001369654543 | E29: 0.001369654543
B30: O | C30: ='Year on Year Comparison'!N177 -> 0.08339674327 | E30: 0.08339674327
B31: ND | C31: ='Year on Year Comparison'!N178 -> 0.1523360219 | E31: 0.1523360219
B32: NR | C32: ='Year on Year Comparison'!N179 -> 0.1241820119 | E32: 0.1241820119
A33: ='Year on Year Comparison'!$O$169 -> 2018 | B33: A | D33: ='Year on Year Comparison'!O170 -> 0.1641418085 | F33: =D33/SUM($D$33:$D$42) -> 0.1641418085
B34: B | D34: ='Year on Year Comparison'!O171 -> 0.004841480556 | F34: 0.004841480556
B35: C | D35: ='Year on Year Comparison'!O172 -> 0.4397938466 | F35: 0.4397938466
B36: H | D36: ='Year on Year Comparison'!O173 -> 0.00734030923 | F36: 0.00734030923
B37: I | D37: ='Year on Year Comparison'!O174 -> 0.007652662814 | F37: 0.007652662814
B38: J | D38: ='Year on Year Comparison'!O175 -> 0.0007808839606 | F38: 0.0007808839606
B39: S | D39: ='Year on Year Comparison'!O176 -> 0.001405591129 | F39: 0.001405591129
B40: O | D40: ='Year on Year Comparison'!O177 -> 0.07793221927 | F40: 0.07793221927
B41: ND | D41: ='Year on Year Comparison'!O178 -> 0.1511791348 | F41: 0.1511791348
B42: NR | D42: ='Year on Year Comparison'!O179 -> 0.1449320631 | F42: 0.1449320631
A43: ='Year on Year Comparison'!$P$169 -> 2017 | B43: A | C43: ='Year on Year Comparison'!P170 -> 0.1483746379 | E43: =C43/SUM($C$43:$C$52) -> 0.1483746379
B44: B | C44: ='Year on Year Comparison'!P171 -> 0.004023173479 | E44: =C44/SUM($C$43:$C$52) -> 0.004023173479
B45: C | C45: ='Year on Year Comparison'!P172 -> 0.4341808819 | E45: 0.4341808819
B46: H | C46: ='Year on Year Comparison'!P173 -> 0.006276150628 | E46: 0.006276150628
B47: I | C47: ='Year on Year Comparison'!P174 -> 0.006276150628 | E47: 0.006276150628
B48: J | C48: ='Year on Year Comparison'!P175 -> 0.0006437077567 | E48: 0.0006437077567
B49: S | C49: ='Year on Year Comparison'!P176 -> 0.001287415513 | E49: 0.001287415513
B50: O | C50: ='Year on Year Comparison'!P177 -> 0.07627936917 | E50: 0.07627936917
B51: ND | C51: ='Year on Year Comparison'!P178 -> 0.1709044094 | E51: 0.1709044094
B52: NR | C52: ='Year on Year Comparison'!P179 -> 0.1517541036 | E52: 0.1517541036

Sheet Colours (hidden)
A1: 1 | B1: 0 | C1: 112 | D1: 192 | F1: 1 | G1: =IF(MOD(F1,INDEX($A$15:$B$21,MATCH($A$25,$A$15:$A$21,0),2))=0,INDEX($A$15:$B$21,MATCH($A$25,$A$15:$A$21,0),2),MOD(F1,INDEX($A$15:$B$21,MATCH($A$25,$A$15:$A$21,0),2))) -> 1 | H1: =INDEX($A$1:$D$10,MATCH(G1,$A$1:$A$10,0),2) -> 0 | I1: =INDEX($A$1:$D$10,MATCH(G1,$A$1:$A$10,0),3) -> 112 | J1: =INDEX($A$1:$D$10,MATCH(G1,$A$1:$A$10,0),4) -> 192
A2: 2 | B2: 0 | C2: 153 | D2: 255 | F2: 2 | G2: =IF(MOD(F2,INDEX($A$15:$B$21,MATCH($A$25,$A$15:$A$21,0),2))=0,INDEX($A$15:$B$21,MATCH($A$25,$A$15:$A$21,0),2),MOD(F2,INDEX($A$15:$B$21,MATCH($A$25,$A$15:$A$21,0),2))) -> 2 | H2: =INDEX($A$1:$D$10,MATCH(G2,$A$1:$A$10,0),2) -> 0 | I2: =INDEX($A$1:$D$10,MATCH(G2,$A$1:$A$10,0),3) -> 153 | J2: =INDEX($A$1:$D$10,MATCH(G2,$A$1:$A$10,0),4) -> 255
A3: 3 | B3: 0 | C3: 176 | D3: 240 | F3: 3 | G3: 3 | H3: 0 | I3: 176 | J3: 240
A4: 4 | B4: 51 | C4: 204 | D4: 255 | F4: 4 | G4: 4 | H4: 51 | I4: 204 | J4: 255
A5: 5 | B5: 155 | C5: 194 | D5: 230 | F5: 5 | G5: 5 | H5: 155 | I5: 194 | J5: 230
A6: 6 | B6: 180 | C6: 198 | D6: 231 | F6: 6 | G6: 6 | H6: 180 | I6: 198 | J6: 231
A7: 7 | B7: 189 | C7: 215 | D7: 238 | F7: 7 | G7: 7 | H7: 189 | I7: 215 | J7: 238
A8: 8 | B8: 217 | C8: 225 | D8: 242 | F8: 8 | G8: 1 | H8: 0 | I8: 112 | J8: 192
A9: 9 | B9: 219 | C9: 219 | D9: 219 | F9: 9 | G9: 2 | H9: 0 | I9: 153 | J9: 255
A10: 10 | B10: 166 | C10: 166 | D10: 166 | F10: 10 | G10: 3 | H10: 0 | I10: 176 | J10: 240
B11: R | C11: G | D11: B | F11: 11 | G11: 4 | H11: 51 | I11: 204 | J11: 255
F12: 12 | G12: 5 | H12: 155 | I12: 194 | J12: 230
F13: 13 | G13: 6 | H13: 180 | I13: 198 | J13: 231
F14: 14 | G14: 7 | H14: 189 | I14: 215 | J14: 238
A15: Age | B15: 6 | F15: 15 | G15: 1 | H15: 0 | I15: 112 | J15: 192
A16: Disability | B16: 4 | F16: 16 | G16: 2 | H16: 0 | I16: 153 | J16: 255
A17: Ethnicity | B17: 4 | F17: 17 | G17: 3 | H17: 0 | I17: 176 | J17: 240
A18: Gender | B18: 2 | F18: 18 | G18: 4 | H18: 51 | I18: 204 | J18: 255
A19: Relationship | B19: 7 | F19: 19 | G19: 5 | H19: 155 | I19: 194 | J19: 230
A20: Religious | B20: 10 | F20: 20 | G20: 6 | H20: 180 | I20: 198 | J20: 231
A21: Sexual | B21: 6 | F21: 21 | G21: 7 | H21: 189 | I21: 215 | J21: 238
F22: 22 | G22: 1 | H22: 0 | I22: 112 | J22: 192
F23: 23 | G23: 2 | H23: 0 | I23: 153 | J23: 255
F24: 24 | G24: 3 | H24: 0 | I24: 176 | J24: 240
A25: Relationship | F25: 25 | G25: 4 | H25: 51 | I25: 204 | J25: 255
F26: 26 | G26: 5 | H26: 155 | I26: 194 | J26: 230
F27: 27 | G27: 6 | H27: 180 | I27: 198 | J27: 231
F28: 28 | G28: 7 | H28: 189 | I28: 215 | J28: 238
F29: 29 | G29: 1 | H29: 0 | I29: 112 | J29: 192
F30: 30 | G30: 2 | H30: 0 | I30: 153 | J30: 255
F31: 31 | G31: 3 | H31: 0 | I31: 176 | J31: 240
F32: 32 | G32: 4 | H32: 51 | I32: 204 | J32: 255
F33: 33 | G33: 5 | H33: 155 | I33: 194 | J33: 230
F34: 34 | G34: 6 | H34: 180 | I34: 198 | J34: 231
F35: 35 | G35: 7 | H35: 189 | I35: 215 | J35: 238
F36: 36 | G36: 1 | H36: 0 | I36: 112 | J36: 192
F37: 37 | G37: 2 | H37: 0 | I37: 153 | J37: 255
F38: 38 | G38: 3 | H38: 0 | I38: 176 | J38: 240
F39: 39 | G39: 4 | H39: 51 | I39: 204 | J39: 255
F40: 40 | G40: 5 | H40: 155 | I40: 194 | J40: 230
F41: 41 | G41: 6 | H41: 180 | I41: 198 | J41: 231
F42: 42 | G42: 7 | H42: 189 | I42: 215 | J42: 238
F43: 43 | G43: 1 | H43: 0 | I43: 112 | J43: 192
F44: 44 | G44: 2 | H44: 0 | I44: 153 | J44: 255
F45: 45 | G45: 3 | H45: 0 | I45: 176 | J45: 240
F46: 46 | G46: 4 | H46: 51 | I46: 204 | J46: 255
F47: 47 | G47: 5 | H47: 155 | I47: 194 | J47: 230
F48: 48 | G48: 6 | H48: 180 | I48: 198 | J48: 231
F49: 49 | G49: 7 | H49: 189 | I49: 215 | J49: 238
F50: 50 | G50: 1 | H50: 0 | I50: 112 | J50: 192
F51: 51 | G51: 2 | H51: 0 | I51: 153 | J51: 255
F52: 52 | G52: 3 | H52: 0 | I52: 176 | J52: 240
F53: 53 | G53: 4 | H53: 51 | I53: 204 | J53: 255
F54: 54 | G54: 5 | H54: 155 | I54: 194 | J54: 230
F55: 55 | G55: 6 | H55: 180 | I55: 198 | J55: 231
F56: 56 | G56: 7 | H56: 189 | I56: 215 | J56: 238
F57: 57 | G57: 1 | H57: 0 | I57: 112 | J57: 192
F58: 58 | G58: 2 | H58: 0 | I58: 153 | J58: 255
F59: 59 | G59: 3 | H59: 0 | I59: 176 | J59: 240
F60: 60 | G60: 4 | H60: 51 | I60: 204 | J60: 255
F61: 61 | G61: 5 | H61: 155 | I61: 194 | J61: 230
F62: 62 | G62: 6 | H62: 180 | I62: 198 | J62: 231
F63: 63 | G63: 7 | H63: 189 | I63: 215 | J63: 238
F64: 64 | G64: 1 | H64: 0 | I64: 112 | J64: 192
F65: 65 | G65: 2 | H65: 0 | I65: 153 | J65: 255
F66: 66 | G66: =IF(MOD(F66,INDEX($A$15:$B$21,MATCH($A$25,$A$15:$A$21,0),2))=0,INDEX($A$15:$B$21,MATCH($A$25,$A$15:$A$21,0),2),MOD(F66,INDEX($A$15:$B$21,MATCH($A$25,$A$15:$A$21,0),2))) -> 3 | H66: =INDEX($A$1:$D$10,MATCH(G66,$A$1:$A$10,0),2) -> 0 | I66: =INDEX($A$1:$D$10,MATCH(G66,$A$1:$A$10,0),3) -> 176 | J66: =INDEX($A$1:$D$10,MATCH(G66,$A$1:$A$10,0),4) -> 240
F67: 67 | G67: 4 | H67: 51 | I67: 204 | J67: 255
F68: 68 | G68: 5 | H68: 155 | I68: 194 | J68: 230
F69: 69 | G69: 6 | H69: 180 | I69: 198 | J69: 231
F70: 70 | G70: 7 | H70: 189 | I70: 215 | J70: 238
F71: 71 | G71: 1 | H71: 0 | I71: 112 | J71: 192
F72: 72 | G72: 2 | H72: 0 | I72: 153 | J72: 255
F73: 73 | G73: 3 | H73: 0 | I73: 176 | J73: 240
F74: 74 | G74: 4 | H74: 51 | I74: 204 | J74: 255
F75: 75 | G75: 5 | H75: 155 | I75: 194 | J75: 230
F76: 76 | G76: 6 | H76: 180 | I76: 198 | J76: 231
F77: 77 | G77: 7 | H77: 189 | I77: 215 | J77: 238
F78: 78 | G78: 1 | H78: 0 | I78: 112 | J78: 192
F79: 79 | G79: 2 | H79: 0 | I79: =INDEX($A$1:$D$10,MATCH(G79,$A$1:$A$10,0),3) -> 153 | J79: =INDEX($A$1:$D$10,MATCH(G79,$A$1:$A$10,0),4) -> 255
F80: 80 | G80: 3 | H80: 0 | I80: 176 | J80: 240
F81: 81 | G81: 4 | H81: 51 | I81: 204 | J81: 255
F82: 82 | G82: 5 | H82: 155 | I82: 194 | J82: 230
F83: 83 | G83: 6 | H83: 180 | I83: 198 | J83: 231
F84: 84 | G84: 7 | H84: 189 | I84: 215 | J84: 238
F85: 85 | G85: 1 | H85: 0 | I85: 112 | J85: 192
F86: 86 | G86: 2 | H86: 0 | I86: 153 | J86: 255
F87: 87 | G87: 3 | H87: 0 | I87: 176 | J87: 240
F88: 88 | G88: 4 | H88: 51 | I88: 204 | J88: 255
F89: 89 | G89: 5 | H89: 155 | I89: 194 | J89: 230
F90: 90 | G90: 6 | H90: 180 | I90: 198 | J90: 231
F91: 91 | G91: 7 | H91: 189 | I91: 215 | J91: 238
F92: 92 | G92: 1 | H92: 0 | I92: 112 | J92: 192
F93: 93 | G93: 2 | H93: 0 | I93: 153 | J93: 255
F94: 94 | G94: 3 | H94: 0 | I94: 176 | J94: 240
F95: 95 | G95: 4 | H95: 51 | I95: 204 | J95: 255
F96: 96 | G96: 5 | H96: 155 | I96: 194 | J96: 230
F97: 97 | G97: 6 | H97: 180 | I97: 198 | J97: 231
F98: 98 | G98: 7 | H98: 189 | I98: 215 | J98: 238
F99: 99 | G99: 1 | H99: 0 | I99: 112 | J99: 192
F100: 100 | G100: 2 | H100: 0 | I100: 153 | J100: 255
F101: 101 | G101: 3 | H101: 0 | I101: 176 | J101: 240
F102: 102 | G102: 4 | H102: 51 | I102: 204 | J102: 255
F103: 103 | G103: 5 | H103: 155 | I103: 194 | J103: 230
F104: 104 | G104: 6 | H104: 180 | I104: 198 | J104: 231
F105: 105 | G105: 7 | H105: 189 | I105: 215 | J105: 238
F106: 106 | G106: 1 | H106: 0 | I106: 112 | J106: 192
F107: 107 | G107: 2 | H107: 0 | I107: 153 | J107: 255
F108: 108 | G108: 3 | H108: 0 | I108: 176 | J108: 240
F109: 109 | G109: 4 | H109: 51 | I109: 204 | J109: 255
F110: 110 | G110: 5 | H110: 155 | I110: 194 | J110: 230
F111: 111 | G111: 6 | H111: 180 | I111: 198 | J111: 231
F112: 112 | G112: 7 | H112: 189 | I112: 215 | J112: 238
F113: 113 | G113: 1 | H113: 0 | I113: 112 | J113: 192
F114: 114 | G114: 2 | H114: 0 | I114: 153 | J114: 255
F115: 115 | G115: 3 | H115: 0 | I115: 176 | J115: 240
F116: 116 | G116: 4 | H116: 51 | I116: 204 | J116: 255
F117: 117 | G117: 5 | H117: 155 | I117: 194 | J117: 230
F118: 118 | G118: 6 | H118: 180 | I118: 198 | J118: 231
F119: 119 | G119: 7 | H119: 189 | I119: 215 | J119: 238
F120: 120 | G120: 1 | H120: 0 | I120: 112 | J120: 192
F121: 121 | G121: 2 | H121: 0 | I121: 153 | J121: 255
F122: 122 | G122: 3 | H122: 0 | I122: 176 | J122: 240
F123: 123 | G123: 4 | H123: 51 | I123: 204 | J123: 255
F124: 124 | G124: 5 | H124: 155 | I124: 194 | J124: 230
F125: 125 | G125: 6 | H125: 180 | I125: 198 | J125: 231
F126: 126 | G126: 7 | H126: 189 | I126: 215 | J126: 238
F127: 127 | G127: 1 | H127: 0 | I127: 112 | J127: 192
F128: 128 | G128: 2 | H128: 0 | I128: 153 | J128: 255
F129: 129 | G129: 3 | H129: 0 | I129: 176 | J129: 240
F130: 130 | G130: =IF(MOD(F130,INDEX($A$15:$B$21,MATCH($A$25,$A$15:$A$21,0),2))=0,INDEX($A$15:$B$21,MATCH($A$25,$A$15:$A$21,0),2),MOD(F130,INDEX($A$15:$B$21,MATCH($A$25,$A$15:$A$21,0),2))) -> 4 | H130: =INDEX($A$1:$D$10,MATCH(G130,$A$1:$A$10,0),2) -> 51 | I130: 204 | J130: 255
